Workbook

Sheet CALC (hidden)
A1: Emision | B1: DC24 | C1: Contrato | E1: Fecha Fin | F1: Dxv | G1: Plazo Cupon | H1: Flujo Cupón | I1: Amort | J1: VP | L1: Contador | M1: VP Acum | P1: Fecha Fin Fung | Q1: Fecha Fin No Fung | S1: ="DC18"&Información!$H$2 -> DC18MR22
A2: Vencimiento | B2: MR22 | C2: Vencimiento | E2: =IF(OR($B$1="MR26",$B$1="SP24"),Q2,P2) -> 2013-12-19 | F2: =IF(OR(E2-$B$3<=0,E2>$B$4),"",E2-$B$3) ->  | P2: 2013-12-19 | Q2: 2016-09-15 | S2: ="DC18"&Información!$H$3 -> DC18JN22
A3: Fecha Valuación | B3: =DIA_VALUACION -> 2022-01-04 | D3: =IF(F3=MIN($F:$F),"VIG","") ->  | E3: =IF(OR($B$1="MR26",$B$1="SP24"),Q3,P3) -> 2014-06-19 | F3: =IF(OR(E3-$B$3<=0,E3>$B$4),"",E3-$B$3) ->  | G3: =IF(E3-E2<0,0,E3-E2) -> 182 | H3: =IF(F3<=0,0,$B$6/36000*G3*100) -> 5.055555556 | I3: =IF(F3=MAX($F:$F),100,0) -> 0 | J3: =IF(F3="",0,(H3+I3)/(1+$B$7*182/36000)^(F3/182)) -> 0 | L3: =IF(F3="","",IF(F3=MIN($F:$F),1,L2+1)) ->  | M3: =IFERROR(H3/(1+$B$11*F3/36000)+SUM($M$2:$M2),0) -> 0 | P3: 2014-06-19 | Q3: 2017-03-16 | S3: ="DC18"&Información!$H$4 -> DC18SP22
A4: Vencimiento | B4: =VLOOKUP($B$1,CTOS_CASH,2,0) -> 2024-12-05 | D4: =IF(F4=MIN($F:$F),"VIG","") ->  | E4: 2014-12-18 | F4: =IF(OR(E4-$B$3<=0,E4>$B$4),"",E4-$B$3) ->  | G4: =IF(E4-E3<0,0,E4-E3) -> 182 | H4: 5.055555556 | I4: =IF(F4=MAX($F:$F),100,0) -> 0 | J4: 0 | K4: =IFERROR(H4/(1+$B$11*F4/36000),"") ->  | M4: =IFERROR(H4/(1+$B$11*F4/36000)+SUM($M$2:$M3),0) -> 0 | P4: 2014-12-18 | Q4: 2017-09-14
A5: Venc. Futuro | B5: =VLOOKUP($B$2,CTOS_FUT,2,0) -> 2022-03-31 | D5: =IF(F5=MIN($F:$F),"VIG","") ->  | E5: 2015-06-18 | F5: =IF(OR(E5-$B$3<=0,E5>$B$4),"",E5-$B$3) ->  | G5: =IF(E5-E4<0,0,E5-E4) -> 182 | H5: 5.055555556 | I5: =IF(F5=MAX($F:$F),100,0) -> 0 | J5: 0 | M5: =IFERROR(H5/(1+$B$11*F5/36000)+SUM($M$2:$M4),0) -> 0 | P5: 2015-06-18 | Q5: 2018-03-15 | S5: ="JN21"&Información!$H$2 -> JN21MR22
A6: Tasa Cupón | B6: =VLOOKUP($B$1,CTOS_CASH,3,0) -> 10 | E6: 2015-12-17 | G6: 182 | H6: =IF(F6<=0,0,$B$6/36000*G6*100) -> 5.055555556 | I6: 0 | J6: 0 | K6: =IFERROR(H6/(1+$B$11*F6/36000),"") ->  | M6: =IFERROR(H6/(1+$B$11*F6/36000)+SUM($M$2:$M5),0) -> 0 | P6: 2015-12-17 | Q6: 2018-09-13 | S6: ="JN21"&Información!$H$3 -> JN21JN22
A7: Tasa Yield | B7: 7.162104588 | E7: 2016-06-16 | G7: 182 | H7: 5.055555556 | I7: 0 | J7: 0 | M7: =IFERROR(H7/(1+$B$11*F7/36000)+SUM($M$2:$M6),0) -> 0 | P7: 2016-06-16 | Q7: 2019-03-14 | S7: ="JN21"&Información!$H$4 -> JN21SP22
A8: Precio Sucio | B8: =SUM($J:$J) -> 108.1628975 | D8: =IF(F8=MIN($F:$F),"VIG","") ->  | E8: 2016-12-15 | G8: 182 | H8: 5.055555556 | I8: 0 | J8: 0 | M8: =IFERROR(H8/(1+$B$11*F8/36000)+SUM($M$2:$M7),0) -> 0 | P8: 2016-12-15 | Q8: 2019-09-12 | S8: ="JN21"&Información!$H$5 -> JN21DC22
A9: Precio Limpio | B9: =+B8-B10 -> 107.4406753 | E9: 2017-06-15 | G9: 182 | H9: 5.055555556 | I9: 0 | J9: 0 | M9: =IFERROR(H9/(1+$B$11*F9/36000)+SUM($M$2:$M8),0) -> 0 | P9: 2017-06-15 | Q9: 2020-03-12
A10: Intereses | B10: =100*$B$6/36000*(VLOOKUP("VIG",$D:$G,4,0)-VLOOKUP("VIG",$D:$G,3,0)) -> 0.7222222222 | E10: 2017-12-14 | G10: 182 | H10: 5.055555556 | I10: 0 | J10: 0 | M10: =IFERROR(H10/(1+$B$11*F10/36000)+SUM($M$2:$M9),0) -> 0 | P10: 2017-12-14 | Q10: 2020-09-10 | S10: ="DC24"&Información!$H$2 -> DC24MR22
A11: Fondeo | B11: =VLOOKUP($B$2,TABLA_FONDEO,3,0) -> 5.803942 | D11: =IF(F11=MIN($F:$F),"VIG","") ->  | E11: 2018-06-14 | F11: =IF(OR(E11-$B$3<=0,E11>$B$4),"",E11-$B$3) ->  | G11: 182 | H11: =IF(F11<=0,0,$B$6/36000*G11*100) -> 5.055555556 | I11: 0 | J11: =IF(F11="",0,(H11+I11)/(1+$B$7*182/36000)^(F11/182)) -> 0 | K11: =IFERROR(H11/(1+$B$11*F11/36000),"") ->  | L11: =IF(F11="","",IF(F11=MIN($F:$F),1,L10+1)) ->  | M11: =IFERROR(H11/(1+$B$11*F11/36000)+SUM($M$2:$M10),0) -> 0 | P11: 2018-06-14 | Q11: 2021-03-11 | S11: ="DC24"&Información!$H$3 -> DC24JN22
A12: Cupones | B12: =TRUNC(($B$5-(VLOOKUP("VIG",$D:$G,2,0)-VLOOKUP("VIG",$D:$G,4,0)))/180,0) -> 0 | E12: 2018-12-13 | F12: =IF(OR(E12-$B$3<=0,E12>$B$4),"",E12-$B$3) ->  | G12: 182 | H12: 5.055555556 | I12: 0 | J12: =IF(F12="",0,(H12+I12)/(1+$B$7*182/36000)^(F12/182)) -> 0 | K12: =IFERROR(H12/(1+$B$11*F12/36000),"") ->  | L12: =IF(F12="","",IF(F12=MIN($F:$F),1,L11+1)) ->  | M12: =IFERROR(H12/(1+$B$11*F12/36000)+SUM($M$2:$M11),0) -> 0 | P12: 2018-12-13 | Q12: 2021-09-09 | S12: ="DC24"&Información!$H$4 -> DC24SP22
A13: VP Cupón | B13: =IFERROR(VLOOKUP($B$12,$L:$M,2,0),0) -> 0 | E13: 2019-06-13 | G13: =IF(E13-E12<0,0,E13-E12) -> 182 | H13: 5.055555556 | I13: 0 | J13: =IF(F13="",0,(H13+I13)/(1+$B$7*182/36000)^(F13/182)) -> 0 | K13: =IFERROR(H13/(1+$B$11*F13/36000),"") ->  | M13: =IFERROR(H13/(1+$B$11*F13/36000)+SUM($M$2:$M12),0) -> 0 | P13: 2019-06-13 | Q13: 2022-03-10 | S13: ="DC24"&Información!$H$5 -> DC24DC22
A14: DXV FUT | B14: =+B5-B3 -> 86 | E14: 2019-12-11 | G14: 181 | H14: 5.027777778 | I14: 0 | J14: 0 | M14: =IFERROR(H14/(1+$B$11*F14/36000)+SUM($M$2:$M13),0) -> 0 | P14: 2019-12-11 | Q14: 2022-09-08
A15: Acarreo | B15: =(B8-B13)*(1+B11*B14/36000) -> 109.6625731 | E15: 2020-06-11 | G15: 183 | H15: 5.083333333 | I15: 0 | J15: =IF(F15="",0,(H15+I15)/(1+$B$7*182/36000)^(F15/182)) -> 0 | M15: =IFERROR(H15/(1+$B$11*F15/36000)+SUM($M$2:$M14),0) -> 0 | P15: 2020-06-11 | Q15: 2023-03-09 | S15: ="MR26"&Información!$H$2 -> MR26MR22
A16: Tasa Yield | B16: =CALCF!B4 -> 7.328250528 | E16: 2020-12-10 | G16: 182 | H16: 5.055555556 | I16: 0 | J16: 0 | M16: =IFERROR(H16/(1+$B$11*F16/36000)+SUM($M$2:$M15),0) -> 0 | P16: 2020-12-10 | Q16: 2023-09-07 | S16: ="MR26"&Información!$H$3 -> MR26JN22
E17: 2021-06-10 | G17: 182 | H17: 5.055555556 | I17: 0 | J17: 0 | M17: =IFERROR(H17/(1+$B$11*F17/36000)+SUM($M$2:$M16),0) -> 0 | P17: 2021-06-10 | Q17: 2024-03-07 | S17: ="MR26"&Información!$H$4 -> MR26SP22
E18: 2021-12-09 | G18: 182 | H18: 5.055555556 | I18: 0 | J18: 0 | M18: =IFERROR(H18/(1+$B$11*F18/36000)+SUM($M$2:$M17),0) -> 0 | P18: 2021-12-09 | Q18: 2024-09-05 | S18: ="MR26"&Información!$H$5 -> MR26DC22
D19: VIG | E19: 2022-06-09 | F19: 156 | G19: 182 | H19: 5.055555556 | I19: 0 | J19: 4.903752043 | K19: 4.931525638 | L19: 1 | M19: =IFERROR(H19/(1+$B$11*F19/36000)+SUM($M$2:$M18),0) -> 4.931525638 | P19: 2022-06-09 | Q19: 2025-03-06
E20: 2022-12-08 | F20: 338 | G20: 182 | H20: 5.055555556 | I20: 0 | J20: 4.732399351 | K20: 4.794301748 | L20: 2 | M20: =IFERROR(H20/(1+$B$11*F20/36000)+SUM($M$2:$M19),0) -> 9.725827386 | P20: 2022-12-08 | Q20: 2025-09-04 | S20: ="MY31"&Información!$H$2 -> MY31MR22
E21: 2023-06-08 | F21: 520 | G21: 182 | H21: 5.055555556 | I21: 0 | J21: 4.567034267 | K21: 4.664507856 | L21: 3 | M21: =IFERROR(H21/(1+$B$11*F21/36000)+SUM($M$2:$M20),0) -> 19.32186088 | P21: 2023-06-08 | Q21: 2026-03-05 | S21: ="MY31"&Información!$H$3 -> MY31JN22
E22: 2023-12-07 | F22: 702 | G22: 182 | H22: 5.055555556 | I22: 0 | J22: 4.407447565 | K22: 4.54155642 | L22: 4 | M22: =IFERROR(H22/(1+$B$11*F22/36000)+SUM($M$2:$M21),0) -> 38.52077032 | P22: 2023-12-07 | S22: ="MY31"&Información!$H$4 -> MY31SP22
E23: 2024-06-06 | F23: 884 | G23: 182 | H23: 5.055555556 | I23: 0 | J23: 4.25343733 | K23: 4.424920256 | L23: 5 | M23: =IFERROR(H23/(1+$B$11*F23/36000)+SUM($M$2:$M22),0) -> 76.92490448 | P23: 2024-06-06 | S23: ="MY31"&Información!$H$5 -> MY31DC22
E24: 2024-12-05 | F24: 1066 | G24: 182 | H24: 5.055555556 | I24: 100 | J24: 85.29882698 | K24: 4.314124982 | L24: 6 | M24: =IFERROR(H24/(1+$B$11*F24/36000)+SUM($M$2:$M23),0) -> 153.7390137 | P24: 2024-12-05
E25: 2025-06-05 | G25: 182 | H25: 5.055555556 | I25: 0 | J25: 0 | M25: =IFERROR(H25/(1+$B$11*F25/36000)+SUM($M$2:$M24),0) -> 0 | P25: 2025-06-05 | S25: ="NV42"&Información!$H$2 -> NV42MR22
E26: 2025-12-04 | G26: 182 | H26: 5.055555556 | I26: 0 | J26: 0 | M26: =IFERROR(H26/(1+$B$11*F26/36000)+SUM($M$2:$M25),0) -> 0 | P26: 2025-12-04 | S26: ="NV42"&Información!$H$3 -> NV42JN22
E27: 2026-06-04 | G27: 182 | H27: 5.055555556 | I27: 0 | J27: 0 | M27: =IFERROR(H27/(1+$B$11*F27/36000)+SUM($M$2:$M26),0) -> 0 | P27: 2026-06-04 | S27: NV42SP18
E28: 2026-12-03 | G28: 182 | H28: 5.055555556 | I28: 0 | J28: 0 | M28: =IFERROR(H28/(1+$B$11*F28/36000)+SUM($M$2:$M27),0) -> 0 | P28: 2026-12-03 | S28: ="NV42"&Información!$H$5 -> NV42DC22
E29: 2027-06-03 | G29: 182 | H29: 5.055555556 | I29: 0 | J29: 0 | M29: =IFERROR(H29/(1+$B$11*F29/36000)+SUM($M$2:$M28),0) -> 0 | P29: 2027-06-03
E30: 2027-12-02 | G30: 182 | H30: 5.055555556 | I30: 0 | J30: 0 | M30: =IFERROR(H30/(1+$B$11*F30/36000)+SUM($M$2:$M29),0) -> 0 | P30: 2027-12-02 | S30: ="JN20"&Información!$H$2 -> JN20MR22
E31: 2028-06-01 | G31: 182 | H31: 5.055555556 | I31: 0 | J31: 0 | M31: =IFERROR(H31/(1+$B$11*F31/36000)+SUM($M$2:$M30),0) -> 0 | P31: 2028-06-01 | S31: ="JN20"&Información!$H$3 -> JN20JN22
E32: 2028-11-30 | G32: 182 | H32: 5.055555556 | I32: 0 | J32: 0 | M32: =IFERROR(H32/(1+$B$11*F32/36000)+SUM($M$2:$M31),0) -> 0 | P32: 2028-11-30 | S32: ="JN20"&Información!$H$4 -> JN20SP22
E33: 2029-05-31 | G33: 182 | H33: 5.055555556 | I33: 0 | J33: 0 | M33: =IFERROR(H33/(1+$B$11*F33/36000)+SUM($M$2:$M32),0) -> 0 | P33: 2029-05-31 | S33: ="JN20"&Información!$H$5 -> JN20DC22
E34: 2029-11-29 | F34: =IF(OR(E34-$B$3<=0,E34>$B$4),"",E34-$B$3) ->  | G34: 182 | H34: 5.055555556 | I34: 0 | J34: 0 | M34: =IFERROR(H34/(1+$B$11*F34/36000)+SUM($M$2:$M33),0) -> 0 | P34: 2029-11-29
E35: 2030-05-30 | G35: 182 | H35: =IF(F35<=0,0,$B$6/36000*G35*100) -> 5.055555556 | I35: 0 | J35: =IF(F35="",0,(H35+I35)/(1+$B$7*182/36000)^(F35/182)) -> 0 | L35: =IF(F35="","",IF(F35=MIN($F:$F),1,L34+1)) ->  | M35: =IFERROR(H35/(1+$B$11*F35/36000)+SUM($M$2:$M34),0) -> 0 | P35: 2030-05-30 | S35: ="JN22"&Información!$H$2 -> JN22MR22
E36: 2030-11-28 | G36: 182 | H36: 5.055555556 | I36: 0 | J36: 0 | K36: =IFERROR(H36/(1+$B$11*F36/36000),"") ->  | M36: =IFERROR(H36/(1+$B$11*F36/36000)+SUM($M$2:$M35),0) -> 0 | P36: 2030-11-28 | S36: ="JN22"&Información!$H$3 -> JN22JN22
E37: 2031-05-29 | G37: 182 | H37: 5.055555556 | I37: 0 | J37: 0 | M37: =IFERROR(H37/(1+$B$11*F37/36000)+SUM($M$2:$M36),0) -> 0 | P37: 2031-05-29 | S37: ="JN22"&Información!$H$4 -> JN22SP22
E38: 2031-11-27 | G38: 182 | H38: 5.055555556 | I38: 0 | J38: 0 | M38: =IFERROR(H38/(1+$B$11*F38/36000)+SUM($M$2:$M37),0) -> 0 | P38: 2031-11-27 | S38: ="JN22"&Información!$H$5 -> JN22DC22
E39: 2032-05-27 | G39: 182 | H39: 5.055555556 | I39: 0 | J39: 0 | M39: =IFERROR(H39/(1+$B$11*F39/36000)+SUM($M$2:$M38),0) -> 0 | P39: 2032-05-27
E40: 2032-11-25 | G40: 182 | H40: 5.055555556 | I40: 0 | J40: 0 | M40: =IFERROR(H40/(1+$B$11*F40/36000)+SUM($M$2:$M39),0) -> 0 | P40: 2032-11-25 | S40: ="JN27"&Información!$H$2 -> JN27MR22
E41: 2033-05-26 | G41: 182 | H41: 5.055555556 | I41: 0 | J41: 0 | M41: =IFERROR(H41/(1+$B$11*F41/36000)+SUM($M$2:$M40),0) -> 0 | P41: 2033-05-26 | S41: ="JN27"&Información!$H$3 -> JN27JN22
E42: 2033-11-24 | G42: 182 | H42: 5.055555556 | I42: 0 | J42: 0 | M42: =IFERROR(H42/(1+$B$11*F42/36000)+SUM($M$2:$M41),0) -> 0 | P42: 2033-11-24 | S42: ="JN27"&Información!$H$4 -> JN27SP22
E43: 2034-05-25 | G43: 182 | H43: 5.055555556 | I43: 0 | J43: 0 | M43: =IFERROR(H43/(1+$B$11*F43/36000)+SUM($M$2:$M42),0) -> 0 | P43: 2034-05-25 | S43: ="JN27"&Información!$H$5 -> JN27DC22
E44: 2034-11-23 | G44: 182 | H44: 5.055555556 | I44: 0 | J44: 0 | M44: =IFERROR(H44/(1+$B$11*F44/36000)+SUM($M$2:$M43),0) -> 0 | P44: 2034-11-23
E45: 2035-05-24 | G45: 182 | H45: 5.055555556 | I45: 0 | J45: 0 | M45: =IFERROR(H45/(1+$B$11*F45/36000)+SUM($M$2:$M44),0) -> 0 | P45: 2035-05-24 | S45: ="NV36"&Información!$H$2 -> NV36MR22
E46: 2035-11-22 | G46: 182 | H46: 5.055555556 | I46: 0 | J46: 0 | M46: =IFERROR(H46/(1+$B$11*F46/36000)+SUM($M$2:$M45),0) -> 0 | P46: 2035-11-22 | S46: ="NV36"&Información!$H$3 -> NV36JN22
E47: 2036-05-22 | G47: 182 | H47: 5.055555556 | I47: 0 | J47: 0 | M47: =IFERROR(H47/(1+$B$11*F47/36000)+SUM($M$2:$M46),0) -> 0 | P47: 2036-05-22 | S47: ="NV36"&Información!$H$4 -> NV36SP22
E48: 2036-11-20 | G48: 182 | H48: 5.055555556 | I48: 0 | J48: 0 | M48: =IFERROR(H48/(1+$B$11*F48/36000)+SUM($M$2:$M47),0) -> 0 | P48: 2036-11-20 | S48: ="NV36"&Información!$H$5 -> NV36DC22
E49: 2037-05-21 | G49: 182 | H49: 5.055555556 | I49: 0 | J49: 0 | M49: =IFERROR(H49/(1+$B$11*F49/36000)+SUM($M$2:$M48),0) -> 0 | P49: 2037-05-21
D50: =IF(F50=MIN($F:$F),"VIG","") ->  | E50: 2037-11-19 | G50: 182 | H50: 5.055555556 | I50: 0 | J50: 0 | M50: =IFERROR(H50/(1+$B$11*F50/36000)+SUM($M$2:$M49),0) -> 0 | P50: 2037-11-19 | S50: ="NV47"&Información!$H$2 -> NV47MR22
E51: 2038-05-20 | G51: 182 | H51: 5.055555556 | I51: 0 | J51: 0 | M51: =IFERROR(H51/(1+$B$11*F51/36000)+SUM($M$2:$M50),0) -> 0 | P51: 2038-05-20 | S51: ="NV47"&Información!$H$3 -> NV47JN22
E52: 2038-11-18 | G52: 182 | H52: 5.055555556 | I52: 0 | J52: 0 | M52: =IFERROR(H52/(1+$B$11*F52/36000)+SUM($M$2:$M51),0) -> 0 | P52: 2038-11-18 | S52: ="NV47"&Información!$H$4 -> NV47SP22
E53: 2039-05-19 | G53: 182 | H53: 5.055555556 | I53: 0 | J53: 0 | M53: =IFERROR(H53/(1+$B$11*F53/36000)+SUM($M$2:$M52),0) -> 0 | P53: 2039-05-19 | S53: ="NV47"&Información!$H$5 -> NV47DC22
E54: 2039-11-17 | G54: 182 | H54: 5.055555556 | I54: 0 | J54: 0 | M54: =IFERROR(H54/(1+$B$11*F54/36000)+SUM($M$2:$M53),0) -> 0 | P54: 2039-11-17
E55: 2040-05-17 | G55: 182 | H55: 5.055555556 | I55: 0 | J55: 0 | M55: =IFERROR(H55/(1+$B$11*F55/36000)+SUM($M$2:$M54),0) -> 0 | P55: 2040-05-17
E56: 2040-11-15 | G56: 182 | H56: 5.055555556 | I56: 0 | J56: 0 | M56: =IFERROR(H56/(1+$B$11*F56/36000)+SUM($M$2:$M55),0) -> 0 | P56: 2040-11-15
E57: 2041-05-16 | G57: 182 | H57: 5.055555556 | I57: 0 | J57: 0 | M57: =IFERROR(H57/(1+$B$11*F57/36000)+SUM($M$2:$M56),0) -> 0 | P57: 2041-05-16
E58: 2041-11-14 | G58: 182 | H58: 5.055555556 | I58: 0 | J58: 0 | M58: =IFERROR(H58/(1+$B$11*F58/36000)+SUM($M$2:$M57),0) -> 0 | P58: 2041-11-14
E59: 2042-05-15 | G59: 182 | H59: 5.055555556 | I59: 0 | J59: 0 | M59: =IFERROR(H59/(1+$B$11*F59/36000)+SUM($M$2:$M58),0) -> 0 | P59: 2042-05-15
E60: 2042-11-13 | F60: =IF(OR(E60-$B$3<=0,E60>$B$4),"",E60-$B$3) ->  | G60: =IF(E60-E59<0,0,E60-E59) -> 182 | H60: =IF(F60<=0,0,$B$6/36000*G60*100) -> 5.055555556 | I60: =IF(F60=MAX($F:$F),100,0) -> 0 | J60: =IF(F60="",0,(H60+I60)/(1+$B$7*182/36000)^(F60/182)) -> 0 | K60: =IFERROR(H60/(1+$B$11*F60/36000),"") ->  | L60: =IF(F60="","",IF(F60=MIN($F:$F),1,L59+1)) ->  | M60: =IFERROR(H60/(1+$B$11*F60/36000)+SUM($M$2:$M59),0) -> 0 | P60: 2042-11-13
E61: 2043-05-14 | F61: =IF(OR(E61-$B$3<=0,E61>$B$4),"",E61-$B$3) ->  | G61: =IF(E61-E60<0,0,E61-E60) -> 182 | H61: =IF(F61<=0,0,$B$6/36000*G61*100) -> 5.055555556 | I61: =IF(F61=MAX($F:$F),100,0) -> 0 | J61: =IF(F61="",0,(H61+I61)/(1+$B$7*182/36000)^(F61/182)) -> 0 | K61: =IFERROR(H61/(1+$B$11*F61/36000),"") ->  | L61: =IF(F61="","",IF(F61=MIN($F:$F),1,L60+1)) ->  | M61: =IFERROR(H61/(1+$B$11*F61/36000)+SUM($M$2:$M60),0) -> 0 | P61: 2043-05-14
E62: 2043-11-12 | G62: 182 | H62: 5.055555556 | I62: 0 | J62: 0 | M62: =IFERROR(H62/(1+$B$11*F62/36000)+SUM($M$2:$M61),0) -> 0 | P62: 2043-11-12
E63: 2044-05-12 | G63: 182 | H63: 5.055555556 | I63: 0 | J63: 0 | M63: =IFERROR(H63/(1+$B$11*F63/36000)+SUM($M$2:$M62),0) -> 0 | P63: 2044-05-12
E64: 2044-11-10 | G64: 182 | H64: 5.055555556 | I64: 0 | J64: 0 | M64: =IFERROR(H64/(1+$B$11*F64/36000)+SUM($M$2:$M63),0) -> 0 | P64: 2044-11-10
E65: 2045-05-11 | G65: 182 | H65: 5.055555556 | I65: 0 | J65: 0 | M65: =IFERROR(H65/(1+$B$11*F65/36000)+SUM($M$2:$M64),0) -> 0 | P65: 2045-05-11
E66: 2045-11-09 | G66: 182 | H66: 5.055555556 | I66: 0 | J66: 0 | M66: =IFERROR(H66/(1+$B$11*F66/36000)+SUM($M$2:$M65),0) -> 0 | P66: 2045-11-09
E67: =IF(OR($B$1="MR26",$B$1="SP24"),Q67,P67) -> 2046-05-10 | G67: 182 | H67: 5.055555556 | I67: 0 | J67: 0 | M67: =IFERROR(H67/(1+$B$11*F67/36000)+SUM($M$2:$M66),0) -> 0 | P67: 2046-05-10
E68: 2046-11-08 | G68: 182 | H68: 5.055555556 | I68: 0 | J68: 0 | M68: =IFERROR(H68/(1+$B$11*F68/36000)+SUM($M$2:$M67),0) -> 0 | P68: 2046-11-08
E69: 2047-05-09 | G69: 182 | H69: 5.055555556 | I69: 0 | J69: 0 | M69: =IFERROR(H69/(1+$B$11*F69/36000)+SUM($M$2:$M68),0) -> 0 | P69: 2047-05-09
E70: =IF($B$1="MR26",Q70,P70) -> 2047-11-07 | G70: 182 | H70: 5.055555556 | I70: 0 | J70: 0 | M70: =IFERROR(H70/(1+$B$11*F70/36000)+SUM($M$2:$M69),0) -> 0 | P70: 2047-11-07

Sheet CALCF (hidden)
A1: Fecha Valuación | B1: =+CALC!B5 -> 2022-03-31 | E1: Fecha Fin | F1: Dxv | G1: Plazo Cupon | P1: Fecha Fin Fung | Q1: Fecha Fin No Fung
A2: Vencimiento | B2: =+CALC!B4 -> 2024-12-05 | E2: =IF(CALC!$B$1="MR26",Q2,P2) -> 2013-12-19 | F2: =IF(OR(E2-$B$1<=0,E2>$B$2),"",E2-$B$1) ->  | P2: 2013-12-19 | Q2: 2016-09-15
A3: Tasa Cupón | B3: =+CALC!B6 -> 10 | D3: =IF(F3=MIN($F:$F),"VIG","") ->  | E3: =IF(CALC!$B$1="MR26",Q3,P3) -> 2014-06-19 | G3: =IF(E3-E2<0,0,E3-E2) -> 182 | P3: 2014-06-19 | Q3: 2017-03-16
A4: Tasa Yield | B4: 7.328250528 | E4: =IF(CALC!$B$1="MR26",Q4,P4) -> 2014-12-18 | G4: =IF(E4-E3<0,0,E4-E3) -> 182 | H4: =IF(F4<=0,0,IF(F4=MAX($F:$F),$B$3/36000*G4*100+100,$B$3/36000*G4*100)) -> 5.055555556 | I4: =IF(F4="",0,H4/(1+$B$4*182/36000)^(F4/182)) -> 0 | P4: 2014-12-18 | Q4: 2017-09-14
A5: Precio Sucio | B5: =SUM(I:I) -> 109.574976 | E5: =IF(CALC!$B$1="MR26",Q5,P5) -> 2015-06-18 | G5: 182 | H5: =IF(F5<=0,0,IF(F5=MAX($F:$F),$B$3/36000*G5*100+100,$B$3/36000*G5*100)) -> 5.055555556 | I5: =IF(F5="",0,H5/(1+$B$4*182/36000)^(F5/182)) -> 0 | P5: 2015-06-18 | Q5: 2018-03-15
B6: =+B5-CALC!B15 -> -0.08759716152 | E6: =IF(CALC!$B$1="MR26",Q6,P6) -> 2015-12-17 | G6: 182 | H6: =IF(F6<=0,0,IF(F6=MAX($F:$F),$B$3/36000*G6*100+100,$B$3/36000*G6*100)) -> 5.055555556 | I6: 0 | P6: 2015-12-17 | Q6: 2018-09-13
E7: =IF(CALC!$B$1="MR26",Q7,P7) -> 2016-06-16 | G7: 182 | H7: 5.055555556 | I7: 0 | P7: 2016-06-16 | Q7: 2019-03-14
E8: =IF(CALC!$B$1="MR26",Q8,P8) -> 2016-12-15 | G8: 182 | H8: 5.055555556 | I8: 0 | P8: 2016-12-15 | Q8: 2019-09-12
E9: =IF(CALC!$B$1="MR26",Q9,P9) -> 2017-06-15 | G9: 182 | H9: 5.055555556 | I9: 0 | P9: 2017-06-15 | Q9: 2020-03-12
E10: =IF(CALC!$B$1="MR26",Q10,P10) -> 2017-12-14 | G10: 182 | H10: 5.055555556 | I10: 0 | P10: 2017-12-14 | Q10: 2020-09-10
E11: =IF(CALC!$B$1="MR26",Q11,P11) -> 2018-06-14 | G11: 182 | H11: 5.055555556 | I11: 0 | P11: 2018-06-14 | Q11: 2021-03-11
E12: =IF(CALC!$B$1="MR26",Q12,P12) -> 2018-12-13 | G12: 182 | H12: 5.055555556 | I12: 0 | P12: 2018-12-13 | Q12: 2021-09-09
E13: =IF(CALC!$B$1="MR26",Q13,P13) -> 2019-06-13 | G13: 182 | H13: 5.055555556 | I13: 0 | P13: 2019-06-13 | Q13: 2022-03-10
E14: =IF(CALC!$B$1="MR26",Q14,P14) -> 2019-12-11 | G14: 181 | H14: 5.027777778 | I14: 0 | P14: 2019-12-11 | Q14: 2022-09-08
E15: =IF(CALC!$B$1="MR26",Q15,P15) -> 2020-06-11 | G15: 183 | H15: 5.083333333 | I15: 0 | P15: 2020-06-11 | Q15: 2023-03-09
E16: =IF(CALC!$B$1="MR26",Q16,P16) -> 2020-12-10 | G16: 182 | H16: 5.055555556 | I16: 0 | P16: 2020-12-10 | Q16: 2023-09-07
E17: =IF(CALC!$B$1="MR26",Q17,P17) -> 2021-06-10 | G17: 182 | H17: 5.055555556 | I17: 0 | P17: 2021-06-10 | Q17: 2024-03-07
E18: =IF(CALC!$B$1="MR26",Q18,P18) -> 2021-12-09 | G18: 182 | H18: 5.055555556 | I18: 0 | P18: 2021-12-09 | Q18: 2024-09-05
D19: VIG | E19: =IF(CALC!$B$1="MR26",Q19,P19) -> 2022-06-09 | F19: 70 | G19: 182 | H19: 5.055555556 | I19: 4.98531199 | P19: 2022-06-09 | Q19: 2025-03-06
E20: =IF(CALC!$B$1="MR26",Q20,P20) -> 2022-12-08 | F20: 252 | G20: 182 | H20: 5.055555556 | I20: 4.807212563 | P20: 2022-12-08 | Q20: 2025-09-04
E21: =IF(CALC!$B$1="MR26",Q21,P21) -> 2023-06-08 | F21: 434 | G21: 182 | H21: 5.055555556 | I21: 4.635475709 | P21: 2023-06-08 | Q21: 2026-03-05
E22: =IF(CALC!$B$1="MR26",Q22,P22) -> 2023-12-07 | F22: 616 | G22: 182 | H22: 5.055555556 | I22: 4.469874124 | P22: 2023-12-07
E23: =IF(CALC!$B$1="MR26",Q23,P23) -> 2024-06-06 | F23: 798 | G23: 182 | H23: 5.055555556 | I23: 4.310188628 | P23: 2024-06-06
E24: =IF(CALC!$B$1="MR26",Q24,P24) -> 2024-12-05 | F24: 980 | G24: 182 | H24: 105.0555556 | I24: 86.36691297 | P24: 2024-12-05
E25: =IF(CALC!$B$1="MR26",Q25,P25) -> 2025-06-05 | G25: 182 | H25: 5.055555556 | I25: 0 | P25: 2025-06-05
E26: =IF(CALC!$B$1="MR26",Q26,P26) -> 2025-12-04 | G26: 182 | H26: 5.055555556 | I26: 0 | P26: 2025-12-04
E27: =IF(CALC!$B$1="MR26",Q27,P27) -> 2026-06-04 | G27: 182 | H27: 5.055555556 | I27: 0 | P27: 2026-06-04
E28: =IF(CALC!$B$1="MR26",Q28,P28) -> 2026-12-03 | G28: 182 | H28: 5.055555556 | I28: 0 | P28: 2026-12-03
E29: =IF(CALC!$B$1="MR26",Q29,P29) -> 2027-06-03 | G29: 182 | H29: 5.055555556 | I29: 0 | P29: 2027-06-03
E30: =IF(CALC!$B$1="MR26",Q30,P30) -> 2027-12-02 | G30: 182 | H30: 5.055555556 | I30: 0 | P30: 2027-12-02
E31: =IF(CALC!$B$1="MR26",Q31,P31) -> 2028-06-01 | G31: 182 | H31: 5.055555556 | I31: 0 | P31: 2028-06-01
E32: =IF(CALC!$B$1="MR26",Q32,P32) -> 2028-11-30 | G32: 182 | H32: 5.055555556 | I32: 0 | P32: 2028-11-30
E33: =IF(CALC!$B$1="MR26",Q33,P33) -> 2029-05-31 | G33: 182 | H33: 5.055555556 | I33: 0 | P33: 2029-05-31
E34: =IF(CALC!$B$1="MR26",Q34,P34) -> 2029-11-29 | F34: =IF(OR(E34-$B$1<=0,E34>$B$2),"",E34-$B$1) ->  | G34: 182 | H34: 5.055555556 | I34: 0 | P34: 2029-11-29
D35: =IF(F35=MIN($F:$F),"VIG","") ->  | E35: =IF(CALC!$B$1="MR26",Q35,P35) -> 2030-05-30 | G35: 182 | H35: =IF(F35<=0,0,IF(F35=MAX($F:$F),$B$3/36000*G35*100+100,$B$3/36000*G35*100)) -> 5.055555556 | I35: =IF(F35="",0,H35/(1+$B$4*182/36000)^(F35/182)) -> 0 | P35: 2030-05-30
E36: =IF(CALC!$B$1="MR26",Q36,P36) -> 2030-11-28 | G36: 182 | H36: 5.055555556 | I36: 0 | P36: 2030-11-28
E37: =IF(CALC!$B$1="MR26",Q37,P37) -> 2031-05-29 | G37: 182 | H37: 5.055555556 | I37: 0 | P37: 2031-05-29
E38: =IF(CALC!$B$1="MR26",Q38,P38) -> 2031-11-27 | G38: 182 | H38: 5.055555556 | I38: 0 | P38: 2031-11-27
E39: =IF(CALC!$B$1="MR26",Q39,P39) -> 2032-05-27 | G39: 182 | H39: 5.055555556 | I39: 0 | P39: 2032-05-27
E40: =IF(CALC!$B$1="MR26",Q40,P40) -> 2032-11-25 | G40: 182 | H40: 5.055555556 | I40: 0 | P40: 2032-11-25
E41: =IF(CALC!$B$1="MR26",Q41,P41) -> 2033-05-26 | G41: 182 | H41: 5.055555556 | I41: 0 | P41: 2033-05-26
E42: =IF(CALC!$B$1="MR26",Q42,P42) -> 2033-11-24 | G42: 182 | H42: 5.055555556 | I42: 0 | P42: 2033-11-24
E43: =IF(CALC!$B$1="MR26",Q43,P43) -> 2034-05-25 | G43: 182 | H43: 5.055555556 | I43: 0 | P43: 2034-05-25
E44: =IF(CALC!$B$1="MR26",Q44,P44) -> 2034-11-23 | G44: 182 | H44: 5.055555556 | I44: 0 | P44: 2034-11-23
E45: =IF(CALC!$B$1="MR26",Q45,P45) -> 2035-05-24 | G45: 182 | H45: 5.055555556 | I45: 0 | P45: 2035-05-24
E46: =IF(CALC!$B$1="MR26",Q46,P46) -> 2035-11-22 | G46: 182 | H46: 5.055555556 | I46: 0 | P46: 2035-11-22
E47: =IF(CALC!$B$1="MR26",Q47,P47) -> 2036-05-22 | G47: 182 | H47: 5.055555556 | I47: 0 | P47: 2036-05-22
E48: =IF(CALC!$B$1="MR26",Q48,P48) -> 2036-11-20 | G48: 182 | H48: 5.055555556 | I48: 0 | P48: 2036-11-20
E49: =IF(CALC!$B$1="MR26",Q49,P49) -> 2037-05-21 | G49: 182 | H49: 5.055555556 | I49: 0 | P49: 2037-05-21
E50: =IF(CALC!$B$1="MR26",Q50,P50) -> 2037-11-19 | G50: 182 | H50: 5.055555556 | I50: 0 | P50: 2037-11-19
E51: =IF(CALC!$B$1="MR26",Q51,P51) -> 2038-05-20 | G51: 182 | H51: 5.055555556 | I51: 0 | P51: 2038-05-20
E52: =IF(CALC!$B$1="MR26",Q52,P52) -> 2038-11-18 | G52: 182 | H52: 5.055555556 | I52: 0 | P52: 2038-11-18
E53: =IF(CALC!$B$1="MR26",Q53,P53) -> 2039-05-19 | G53: 182 | H53: 5.055555556 | I53: 0 | P53: 2039-05-19
E54: =IF(CALC!$B$1="MR26",Q54,P54) -> 2039-11-17 | G54: 182 | H54: 5.055555556 | I54: 0 | P54: 2039-11-17
E55: =IF(CALC!$B$1="MR26",Q55,P55) -> 2040-05-17 | G55: 182 | H55: 5.055555556 | I55: 0 | P55: 2040-05-17
E56: =IF(CALC!$B$1="MR26",Q56,P56) -> 2040-11-15 | G56: 182 | H56: 5.055555556 | I56: 0 | P56: 2040-11-15
E57: =IF(CALC!$B$1="MR26",Q57,P57) -> 2041-05-16 | G57: 182 | H57: 5.055555556 | I57: 0 | P57: 2041-05-16
E58: =IF(CALC!$B$1="MR26",Q58,P58) -> 2041-11-14 | G58: 182 | H58: 5.055555556 | I58: 0 | P58: 2041-11-14
E59: =IF(CALC!$B$1="MR26",Q59,P59) -> 2042-05-15 | G59: 182 | H59: 5.055555556 | I59: 0 | P59: 2042-05-15
E60: =IF(CALC!$B$1="MR26",Q60,P60) -> 2042-11-13 | G60: 182 | H60: 5.055555556 | I60: 0 | P60: 2042-11-13
E61: =IF(CALC!$B$1="MR26",Q61,P61) -> 2043-05-14 | F61: =IF(OR(E61-$B$1<=0,E61>$B$2),"",E61-$B$1) ->  | G61: =IF(E61-E60<0,0,E61-E60) -> 182 | H61: =IF(F61<=0,0,IF(F61=MAX($F:$F),$B$3/36000*G61*100+100,$B$3/36000*G61*100)) -> 5.055555556 | I61: =IF(F61="",0,H61/(1+$B$4*182/36000)^(F61/182)) -> 0 | P61: 2043-05-14
E62: =IF(CALC!$B$1="MR26",Q62,P62) -> 2043-11-12 | G62: 182 | H62: 5.055555556 | I62: 0 | P62: 2043-11-12
E63: =IF(CALC!$B$1="MR26",Q63,P63) -> 2044-05-12 | G63: 182 | H63: 5.055555556 | I63: 0 | P63: 2044-05-12
E64: =IF(CALC!$B$1="MR26",Q64,P64) -> 2044-11-10 | G64: 182 | H64: 5.055555556 | I64: 0 | P64: 2044-11-10
E65: =IF(CALC!$B$1="MR26",Q65,P65) -> 2045-05-11 | G65: 182 | H65: 5.055555556 | I65: 0 | P65: 2045-05-11
E66: =IF(CALC!$B$1="MR26",Q66,P66) -> 2045-11-09 | G66: 182 | H66: 5.055555556 | I66: 0 | P66: 2045-11-09
E67: =IF(CALC!$B$1="MR26",Q67,P67) -> 2046-05-10 | G67: 182 | H67: 5.055555556 | I67: 0 | P67: 2046-05-10
E68: =IF(CALC!$B$1="MR26",Q68,P68) -> 2046-11-08 | G68: 182 | H68: 5.055555556 | I68: 0 | P68: 2046-11-08
E69: =IF(CALC!$B$1="MR26",Q69,P69) -> 2047-05-09 | G69: 182 | H69: 5.055555556 | I69: 0 | P69: 2047-05-09
E70: =IF(CALC!$B$1="MR26",Q70,P70) -> 2047-11-07 | G70: 182 | H70: 5.055555556 | I70: 0 | P70: 2047-11-07

Sheet Información
A1: 1 | B1: 5.48 | E1: Contrato | F1: Vencimiento | G1: Cupón | H1: Contrato | I1: Vencimiento
A2: 2 | B2: 5.48 | E2: DC24 | F2: 2024-12-05 | G2: 10 | H2: MR22 | I2: 2022-03-31
A3: 3 | B3: 5.48 | E3: MR26 | F3: 2026-03-05 | G3: 5.75 | H3: JN22 | I3: 2022-06-30
A4: 4 | B4: 5.48 | E4: JN27 | F4: 2027-06-03 | G4: 7.5 | H4: SP22 | I4: 2022-09-30
A5: 5 | B5: 5.48 | E5: MY29 | F5: 2029-05-31 | G5: 8.5 | H5: DC22 | I5: 2022-12-30
A6: 6 | B6: 5.48 | E6: MY31 | F6: 2031-05-29 | G6: 7.75
A7: 7 | B7: 5.48 | E7: NV36 | F7: 2036-11-20 | G7: 10
A8: 8 | B8: 5.48 | E8: NV42 | F8: 2042-11-13 | G8: 7.75
A9: 9 | B9: 5.48 | E9: NV47 | F9: 2047-11-07 | G9: 8
A10: 10 | B10: 5.48
A11: 11 | B11: 5.48
A12: 12 | B12: 5.48
A13: 13 | B13: 5.48
A14: 14 | B14: 5.48
A15: 15 | B15: 5.479842
A16: 16 | B16: 5.478575
A17: 17 | B17: 5.47556
A18: 18 | B18: 5.471495
A19: 19 | B19: 5.467081
A20: 20 | B20: 5.463015
A21: 21 | B21: 5.46
A22: 22 | B22: 5.463336
A23: 23 | B23: 5.470002
A24: 24 | B24: 5.480002
A25: 25 | B25: 5.491668
A26: 26 | B26: 5.503334
A27: 27 | B27: 5.513334
A28: 28 | B28: 5.52
A29: 29 | B29: 5.52
A30: 30 | B30: 5.519446
A31: 31 | B31: 5.518017
A32: 32 | B32: 5.516064
A33: 33 | B33: 5.513936
A34: 34 | B34: 5.511983
A35: 35 | B35: 5.510554
A36: 36 | B36: 5.51
A37: 37 | B37: 5.511283
A38: 38 | B38: 5.51482
A39: 39 | B39: 5.520146
A40: 40 | B40: 5.526793
A41: 41 | B41: 5.534295
A42: 42 | B42: 5.542187
A43: 43 | B43: 5.55
A44: 44 | B44: 5.557172
A45: 45 | B45: 5.563839
A46: 46 | B46: 5.570583
A47: 47 | B47: 5.577988
A48: 48 | B48: 5.586638
A49: 49 | B49: 5.597114
A50: 50 | B50: 5.61
A51: 51 | B51: 5.627143
A52: 52 | B52: 5.648367
A53: 53 | B53: 5.671224
A54: 54 | B54: 5.693265
A55: 55 | B55: 5.712041
A56: 56 | B56: 5.725102
A57: 57 | B57: 5.73
A58: 58 | B58: 5.73
A59: 59 | B59: 5.73
A60: 60 | B60: 5.73
A61: 61 | B61: 5.73
A62: 62 | B62: 5.73
A63: 63 | B63: 5.73
A64: 64 | B64: 5.73
A65: 65 | B65: 5.73
A66: 66 | B66: 5.73
A67: 67 | B67: 5.73
A68: 68 | B68: 5.73
A69: 69 | B69: 5.73
A70: 70 | B70: 5.73
A71: 71 | B71: 5.73
A72: 72 | B72: 5.732362
A73: 73 | B73: 5.738552
A74: 74 | B74: 5.74723
A75: 75 | B75: 5.757055
A76: 76 | B76: 5.766686
A77: 77 | B77: 5.774781
A78: 78 | B78: 5.78
A79: 79 | B79: 5.78172
A80: 80 | B80: 5.781108
A81: 81 | B81: 5.779504
A82: 82 | B82: 5.778251
A83: 83 | B83: 5.778688
A84: 84 | B84: 5.782157
A85: 85 | B85: 5.79
A86: 86 | B86: 5.803942
A87: 87 | B87: 5.822646
A88: 88 | B88: 5.842857
A89: 89 | B89: 5.861323
A90: 90 | B90: 5.874788
A91: 91 | B91: 5.88
A92: 92 | B92: 5.880044
A93: 93 | B93: 5.881167
A94: 94 | B94: 5.884136
A95: 95 | B95: 5.888485
A96: 96 | B96: 5.893748
A97: 97 | B97: 5.899457
A98: 98 | B98: 5.905148
A99: 99 | B99: 5.910352
A100: 100 | B100: 5.915317
A101: 101 | B101: 5.920557
A102: 102 | B102: 5.926005
A103: 103 | B103: 5.931597
A104: 104 | B104: 5.937267
A105: 105 | B105: 5.942948
A106: 106 | B106: 5.948577
A107: 107 | B107: 5.954086
A108: 108 | B108: 5.959411
A109: 109 | B109: 5.964485
A110: 110 | B110: 5.969243
A111: 111 | B111: 5.973621
A112: 112 | B112: 5.977551
A113: 113 | B113: 5.980968
A114: 114 | B114: 5.984007
A115: 115 | B115: 5.986857
A116: 116 | B116: 5.989532
A117: 117 | B117: 5.992047
A118: 118 | B118: 5.994416
A119: 119 | B119: 5.996654
A120: 120 | B120: 5.998775
A121: 121 | B121: 6.000794
A122: 122 | B122: 6.002726
A123: 123 | B123: 6.004585
A124: 124 | B124: 6.006385
A125: 125 | B125: 6.008142
A126: 126 | B126: 6.00987
A127: 127 | B127: 6.011583
A128: 128 | B128: 6.013103
A129: 129 | B129: 6.014295
A130: 130 | B130: 6.015239
A131: 131 | B131: 6.016016
A132: 132 | B132: 6.016705
A133: 133 | B133: 6.017386
A134: 134 | B134: 6.018141
A135: 135 | B135: 6.019049
A136: 136 | B136: 6.02019
A137: 137 | B137: 6.021644
A138: 138 | B138: 6.023492
A139: 139 | B139: 6.025814
A140: 140 | B140: 6.028689
A141: 141 | B141: 6.032199
A142: 142 | B142: 6.036122
A143: 143 | B143: 6.040188
A144: 144 | B144: 6.044405
A145: 145 | B145: 6.048779
A146: 146 | B146: 6.053319
A147: 147 | B147: 6.058032
A148: 148 | B148: 6.062924
A149: 149 | B149: 6.068003
A150: 150 | B150: 6.073276
A151: 151 | B151: 6.078752
A152: 152 | B152: 6.084436
A153: 153 | B153: 6.090336
A154: 154 | B154: 6.09646
A155: 155 | B155: 6.102815
A156: 156 | B156: 6.109396
A157: 157 | B157: 6.116175
A158: 158 | B158: 6.123126
A159: 159 | B159: 6.130223
A160: 160 | B160: 6.137441
A161: 161 | B161: 6.144751
A162: 162 | B162: 6.152128
A163: 163 | B163: 6.159546
A164: 164 | B164: 6.166979
A165: 165 | B165: 6.174399
A166: 166 | B166: 6.18178
A167: 167 | B167: 6.189097
A168: 168 | B168: 6.196322
A169: 169 | B169: 6.20343
A170: 170 | B170: 6.210951
A171: 171 | B171: 6.219272
A172: 172 | B172: 6.228148
A173: 173 | B173: 6.237338
A174: 174 | B174: 6.246597
A175: 175 | B175: 6.255683
A176: 176 | B176: 6.264352
A177: 177 | B177: 6.272362
A178: 178 | B178: 6.279469
A179: 179 | B179: 6.285429
A180: 180 | B180: 6.29
A181: 181 | B181: 6.292873
A182: 182 | B182: 6.293871
A183: 183 | B183: 6.293849
A184: 184 | B184: 6.294269
A185: 185 | B185: 6.295541
A186: 186 | B186: 6.297615
A187: 187 | B187: 6.300438
A188: 188 | B188: 6.303963
A189: 189 | B189: 6.308139
A190: 190 | B190: 6.312916
A191: 191 | B191: 6.318243
A192: 192 | B192: 6.32407
A193: 193 | B193: 6.330347
A194: 194 | B194: 6.337026
A195: 195 | B195: 6.344054
A196: 196 | B196: 6.351383
A197: 197 | B197: 6.358961
A198: 198 | B198: 6.36674
A199: 199 | B199: 6.374667
A200: 200 | B200: 6.382694
... 1800 more rows

Sheet FUTUROS ESPECIFICOS
A1: Contrato | B1: YCash Bid | C1: YFut Bid | D1: Bid | E1: Ask | F1: Y F Ask | G1: YCash Ask | H1: Last | I1: Tasa Fut | J1: Tasa Cash | L1: BID | M1: ASK | N1: Last | O1: PPP | T1: Plazos | U1: DXV | V1: Fondeo
A2: =Información!E2&Información!$H$2 -> DC24MR22 | L2: =IF(RTD("gllinks.rtd",,"Mkt",$A2,L$1)="--","",RTD("gllinks.rtd",,"Mkt",$A2,L$1)) ->  | M2: =IF(RTD("gllinks.rtd",,"Mkt",$A2,M$1)="--","",RTD("gllinks.rtd",,"Mkt",$A2,M$1)) ->  | N2: =IF(RTD("gllinks.rtd",,"Mkt",$A2,N$1)="--","",RTD("gllinks.rtd",,"Mkt",$A2,N$1)) ->  | O2: =IFERROR((_xll.rtdValue("BID QTY",$A2,"EMD","MXN")*M2+_xll.rtdValue("ASK QTY",$A2,"EMD","MXN")*L2)/(_xll.rtdValue("BID QTY",$A2,"EMD","MXN")+_xll.rtdValue("ASK QTY",$A2,"EMD","MXN")),"") ->  | Q2: Fecha Valuación | T2: =+Información!H2 -> MR22 | U2: =VLOOKUP(T2,CTOS_FUT,2,0)-'FUTUROS ESPECIFICOS'!$Q$4 -> 86 | V2: =VLOOKUP(U2,Información!$A:$B,2,0) -> 5.803942
L3: =IF(RTD("gllinks.rtd",,"Mkt",$A3,L$1)="--","",RTD("gllinks.rtd",,"Mkt",$A3,L$1)) ->  | M3: =IF(RTD("gllinks.rtd",,"Mkt",$A3,M$1)="--","",RTD("gllinks.rtd",,"Mkt",$A3,M$1)) ->  | N3: =IF(RTD("gllinks.rtd",,"Mkt",$A3,N$1)="--","",RTD("gllinks.rtd",,"Mkt",$A3,N$1)) ->  | V3: =VLOOKUP(U3,Información!$A:$B,2,0) -> 
A4: =Información!E2&Información!$H$3 -> DC24JN22 | L4: =IF(RTD("gllinks.rtd",,"Mkt",$A4,L$1)="--","",RTD("gllinks.rtd",,"Mkt",$A4,L$1)) ->  | M4: =IF(RTD("gllinks.rtd",,"Mkt",$A4,M$1)="--","",RTD("gllinks.rtd",,"Mkt",$A4,M$1)) ->  | N4: =IF(RTD("gllinks.rtd",,"Mkt",$A4,N$1)="--","",RTD("gllinks.rtd",,"Mkt",$A4,N$1)) ->  | O4: =IFERROR((_xll.rtdValue("BID QTY",$A4,"EMD","MXN")*M4+_xll.rtdValue("ASK QTY",$A4,"EMD","MXN")*L4)/(_xll.rtdValue("BID QTY",$A4,"EMD","MXN")+_xll.rtdValue("ASK QTY",$A4,"EMD","MXN")),"") ->  | Q4: =WORKDAY(TODAY(),2,calendario!$A$1:$A$339) -> 2022-01-04 | T4: =+Información!H3 -> JN22 | U4: =VLOOKUP(T4,CTOS_FUT,2,0)-'FUTUROS ESPECIFICOS'!$Q$4 -> 177 | V4: =VLOOKUP(U4,Información!$A:$B,2,0) -> 6.272362
L5: =IF(RTD("gllinks.rtd",,"Mkt",$A5,L$1)="--","",RTD("gllinks.rtd",,"Mkt",$A5,L$1)) ->  | M5: =IF(RTD("gllinks.rtd",,"Mkt",$A5,M$1)="--","",RTD("gllinks.rtd",,"Mkt",$A5,M$1)) ->  | N5: =IF(RTD("gllinks.rtd",,"Mkt",$A5,N$1)="--","",RTD("gllinks.rtd",,"Mkt",$A5,N$1)) ->  | V5: =VLOOKUP(U5,Información!$A:$B,2,0) -> 
A6: =Información!E2&Información!$H$4 -> DC24SP22 | L6: =IF(RTD("gllinks.rtd",,"Mkt",$A6,L$1)="--","",RTD("gllinks.rtd",,"Mkt",$A6,L$1)) ->  | M6: =IF(RTD("gllinks.rtd",,"Mkt",$A6,M$1)="--","",RTD("gllinks.rtd",,"Mkt",$A6,M$1)) ->  | N6: =IF(RTD("gllinks.rtd",,"Mkt",$A6,N$1)="--","",RTD("gllinks.rtd",,"Mkt",$A6,N$1)) ->  | O6: =IFERROR((_xll.rtdValue("BID QTY",$A6,"EMD","MXN")*M6+_xll.rtdValue("ASK QTY",$A6,"EMD","MXN")*L6)/(_xll.rtdValue("BID QTY",$A6,"EMD","MXN")+_xll.rtdValue("ASK QTY",$A6,"EMD","MXN")),"") ->  | T6: =+Información!H4 -> SP22 | U6: =VLOOKUP(T6,CTOS_FUT,2,0)-'FUTUROS ESPECIFICOS'!$Q$4 -> 269 | V6: =VLOOKUP(U6,Información!$A:$B,2,0) -> 6.748685
L7: =IF(RTD("gllinks.rtd",,"Mkt",$A7,L$1)="--","",RTD("gllinks.rtd",,"Mkt",$A7,L$1)) ->  | M7: =IF(RTD("gllinks.rtd",,"Mkt",$A7,M$1)="--","",RTD("gllinks.rtd",,"Mkt",$A7,M$1)) ->  | N7: =IF(RTD("gllinks.rtd",,"Mkt",$A7,N$1)="--","",RTD("gllinks.rtd",,"Mkt",$A7,N$1)) ->  | V7: 3.59151833
A8: =Información!E2&Información!$H$5 -> DC24DC22 | L8: =IF(RTD("gllinks.rtd",,"Mkt",$A8,L$1)="--","",RTD("gllinks.rtd",,"Mkt",$A8,L$1)) ->  | M8: =IF(RTD("gllinks.rtd",,"Mkt",$A8,M$1)="--","",RTD("gllinks.rtd",,"Mkt",$A8,M$1)) ->  | N8: =IF(RTD("gllinks.rtd",,"Mkt",$A8,N$1)="--","",RTD("gllinks.rtd",,"Mkt",$A8,N$1)) ->  | O8: =IFERROR((_xll.rtdValue("BID QTY",$A8,"EMD","MXN")*M8+_xll.rtdValue("ASK QTY",$A8,"EMD","MXN")*L8)/(_xll.rtdValue("BID QTY",$A8,"EMD","MXN")+_xll.rtdValue("ASK QTY",$A8,"EMD","MXN")),"") ->  | T8: =+Información!H5 -> DC22 | U8: =VLOOKUP(T8,CTOS_FUT,2,0)-'FUTUROS ESPECIFICOS'!$Q$4 -> 360 | V8: =VLOOKUP(U8,Información!$A:$B,2,0) -> 6.94
L9: =IF(RTD("gllinks.rtd",,"Mkt",$A9,L$1)="--","",RTD("gllinks.rtd",,"Mkt",$A9,L$1)) ->  | M9: =IF(RTD("gllinks.rtd",,"Mkt",$A9,M$1)="--","",RTD("gllinks.rtd",,"Mkt",$A9,M$1)) ->  | N9: =IF(RTD("gllinks.rtd",,"Mkt",$A9,N$1)="--","",RTD("gllinks.rtd",,"Mkt",$A9,N$1)) ->  | V9: 3.60036767
L10: =IF(RTD("gllinks.rtd",,"Mkt",$A10,L$1)="--","",RTD("gllinks.rtd",,"Mkt",$A10,L$1)) ->  | M10: =IF(RTD("gllinks.rtd",,"Mkt",$A10,M$1)="--","",RTD("gllinks.rtd",,"Mkt",$A10,M$1)) ->  | N10: =IF(RTD("gllinks.rtd",,"Mkt",$A10,N$1)="--","",RTD("gllinks.rtd",,"Mkt",$A10,N$1)) -> 
A12: =Información!E3&Información!$H$2 -> MR26MR22 | L12: =IF(RTD("gllinks.rtd",,"Mkt",$A12,L$1)="--","",RTD("gllinks.rtd",,"Mkt",$A12,L$1)) ->  | M12: =IF(RTD("gllinks.rtd",,"Mkt",$A12,M$1)="--","",RTD("gllinks.rtd",,"Mkt",$A12,M$1)) ->  | N12: =IF(RTD("gllinks.rtd",,"Mkt",$A12,N$1)="--","",RTD("gllinks.rtd",,"Mkt",$A12,N$1)) ->  | O12: =IFERROR((_xll.rtdValue("BID QTY",$A12,"EMD","MXN")*M12+_xll.rtdValue("ASK QTY",$A12,"EMD","MXN")*L12)/(_xll.rtdValue("BID QTY",$A12,"EMD","MXN")+_xll.rtdValue("ASK QTY",$A12,"EMD","MXN")),"") -> 
L13: =IF(RTD("gllinks.rtd",,"Mkt",$A13,L$1)="--","",RTD("gllinks.rtd",,"Mkt",$A13,L$1)) ->  | M13: =IF(RTD("gllinks.rtd",,"Mkt",$A13,M$1)="--","",RTD("gllinks.rtd",,"Mkt",$A13,M$1)) ->  | N13: =IF(RTD("gllinks.rtd",,"Mkt",$A13,N$1)="--","",RTD("gllinks.rtd",,"Mkt",$A13,N$1)) -> 
A14: =Información!E3&Información!$H$3 -> MR26JN22 | L14: =IF(RTD("gllinks.rtd",,"Mkt",$A14,L$1)="--","",RTD("gllinks.rtd",,"Mkt",$A14,L$1)) ->  | M14: =IF(RTD("gllinks.rtd",,"Mkt",$A14,M$1)="--","",RTD("gllinks.rtd",,"Mkt",$A14,M$1)) ->  | N14: =IF(RTD("gllinks.rtd",,"Mkt",$A14,N$1)="--","",RTD("gllinks.rtd",,"Mkt",$A14,N$1)) ->  | O14: =IFERROR((_xll.rtdValue("BID QTY",$A14,"EMD","MXN")*M14+_xll.rtdValue("ASK QTY",$A14,"EMD","MXN")*L14)/(_xll.rtdValue("BID QTY",$A14,"EMD","MXN")+_xll.rtdValue("ASK QTY",$A14,"EMD","MXN")),"") -> 
L15: =IF(RTD("gllinks.rtd",,"Mkt",$A15,L$1)="--","",RTD("gllinks.rtd",,"Mkt",$A15,L$1)) ->  | M15: =IF(RTD("gllinks.rtd",,"Mkt",$A15,M$1)="--","",RTD("gllinks.rtd",,"Mkt",$A15,M$1)) ->  | N15: =IF(RTD("gllinks.rtd",,"Mkt",$A15,N$1)="--","",RTD("gllinks.rtd",,"Mkt",$A15,N$1)) -> 
A16: =Información!E3&Información!$H$4 -> MR26SP22 | L16: =IF(RTD("gllinks.rtd",,"Mkt",$A16,L$1)="--","",RTD("gllinks.rtd",,"Mkt",$A16,L$1)) ->  | M16: =IF(RTD("gllinks.rtd",,"Mkt",$A16,M$1)="--","",RTD("gllinks.rtd",,"Mkt",$A16,M$1)) ->  | N16: =IF(RTD("gllinks.rtd",,"Mkt",$A16,N$1)="--","",RTD("gllinks.rtd",,"Mkt",$A16,N$1)) ->  | O16: =IFERROR((_xll.rtdValue("BID QTY",$A16,"EMD","MXN")*M16+_xll.rtdValue("ASK QTY",$A16,"EMD","MXN")*L16)/(_xll.rtdValue("BID QTY",$A16,"EMD","MXN")+_xll.rtdValue("ASK QTY",$A16,"EMD","MXN")),"") -> 
L17: =IF(RTD("gllinks.rtd",,"Mkt",$A17,L$1)="--","",RTD("gllinks.rtd",,"Mkt",$A17,L$1)) ->  | M17: =IF(RTD("gllinks.rtd",,"Mkt",$A17,M$1)="--","",RTD("gllinks.rtd",,"Mkt",$A17,M$1)) ->  | N17: =IF(RTD("gllinks.rtd",,"Mkt",$A17,N$1)="--","",RTD("gllinks.rtd",,"Mkt",$A17,N$1)) -> 
A18: =Información!E3&Información!$H$5 -> MR26DC22 | L18: =IF(RTD("gllinks.rtd",,"Mkt",$A18,L$1)="--","",RTD("gllinks.rtd",,"Mkt",$A18,L$1)) ->  | M18: =IF(RTD("gllinks.rtd",,"Mkt",$A18,M$1)="--","",RTD("gllinks.rtd",,"Mkt",$A18,M$1)) ->  | N18: =IF(RTD("gllinks.rtd",,"Mkt",$A18,N$1)="--","",RTD("gllinks.rtd",,"Mkt",$A18,N$1)) ->  | O18: =IFERROR((_xll.rtdValue("BID QTY",$A18,"EMD","MXN")*M18+_xll.rtdValue("ASK QTY",$A18,"EMD","MXN")*L18)/(_xll.rtdValue("BID QTY",$A18,"EMD","MXN")+_xll.rtdValue("ASK QTY",$A18,"EMD","MXN")),"") -> 
A22: =Información!E4&Información!$H$2 -> JN27MR22 | L22: =IF(RTD("gllinks.rtd",,"Mkt",$A22,L$1)="--","",RTD("gllinks.rtd",,"Mkt",$A22,L$1)) ->  | M22: =IF(RTD("gllinks.rtd",,"Mkt",$A22,M$1)="--","",RTD("gllinks.rtd",,"Mkt",$A22,M$1)) ->  | N22: =IF(RTD("gllinks.rtd",,"Mkt",$A22,N$1)="--","",RTD("gllinks.rtd",,"Mkt",$A22,N$1)) ->  | O22: =IFERROR((_xll.rtdValue("BID QTY",$A22,"EMD","MXN")*M22+_xll.rtdValue("ASK QTY",$A22,"EMD","MXN")*L22)/(_xll.rtdValue("BID QTY",$A22,"EMD","MXN")+_xll.rtdValue("ASK QTY",$A22,"EMD","MXN")),"") -> 
L23: =IF(RTD("gllinks.rtd",,"Mkt",$A23,L$1)="--","",RTD("gllinks.rtd",,"Mkt",$A23,L$1)) ->  | M23: =IF(RTD("gllinks.rtd",,"Mkt",$A23,M$1)="--","",RTD("gllinks.rtd",,"Mkt",$A23,M$1)) ->  | N23: =IF(RTD("gllinks.rtd",,"Mkt",$A23,N$1)="--","",RTD("gllinks.rtd",,"Mkt",$A23,N$1)) -> 
A24: =Información!E4&Información!$H$3 -> JN27JN22 | L24: =IF(RTD("gllinks.rtd",,"Mkt",$A24,L$1)="--","",RTD("gllinks.rtd",,"Mkt",$A24,L$1)) ->  | M24: =IF(RTD("gllinks.rtd",,"Mkt",$A24,M$1)="--","",RTD("gllinks.rtd",,"Mkt",$A24,M$1)) ->  | N24: =IF(RTD("gllinks.rtd",,"Mkt",$A24,N$1)="--","",RTD("gllinks.rtd",,"Mkt",$A24,N$1)) ->  | O24: =IFERROR((_xll.rtdValue("BID QTY",$A24,"EMD","MXN")*M24+_xll.rtdValue("ASK QTY",$A24,"EMD","MXN")*L24)/(_xll.rtdValue("BID QTY",$A24,"EMD","MXN")+_xll.rtdValue("ASK QTY",$A24,"EMD","MXN")),"") -> 
L25: =IF(RTD("gllinks.rtd",,"Mkt",$A25,L$1)="--","",RTD("gllinks.rtd",,"Mkt",$A25,L$1)) ->  | M25: =IF(RTD("gllinks.rtd",,"Mkt",$A25,M$1)="--","",RTD("gllinks.rtd",,"Mkt",$A25,M$1)) ->  | N25: =IF(RTD("gllinks.rtd",,"Mkt",$A25,N$1)="--","",RTD("gllinks.rtd",,"Mkt",$A25,N$1)) -> 
A26: =Información!E4&Información!$H$4 -> JN27SP22 | L26: =IF(RTD("gllinks.rtd",,"Mkt",$A26,L$1)="--","",RTD("gllinks.rtd",,"Mkt",$A26,L$1)) ->  | M26: =IF(RTD("gllinks.rtd",,"Mkt",$A26,M$1)="--","",RTD("gllinks.rtd",,"Mkt",$A26,M$1)) ->  | N26: =IF(RTD("gllinks.rtd",,"Mkt",$A26,N$1)="--","",RTD("gllinks.rtd",,"Mkt",$A26,N$1)) ->  | O26: =IFERROR((_xll.rtdValue("BID QTY",$A26,"EMD","MXN")*M26+_xll.rtdValue("ASK QTY",$A26,"EMD","MXN")*L26)/(_xll.rtdValue("BID QTY",$A26,"EMD","MXN")+_xll.rtdValue("ASK QTY",$A26,"EMD","MXN")),"") -> 
L27: =IF(RTD("gllinks.rtd",,"Mkt",$A27,L$1)="--","",RTD("gllinks.rtd",,"Mkt",$A27,L$1)) ->  | M27: =IF(RTD("gllinks.rtd",,"Mkt",$A27,M$1)="--","",RTD("gllinks.rtd",,"Mkt",$A27,M$1)) ->  | N27: =IF(RTD("gllinks.rtd",,"Mkt",$A27,N$1)="--","",RTD("gllinks.rtd",,"Mkt",$A27,N$1)) -> 
A28: =Información!E4&Información!$H$5 -> JN27DC22 | L28: =IF(RTD("gllinks.rtd",,"Mkt",$A28,L$1)="--","",RTD("gllinks.rtd",,"Mkt",$A28,L$1)) ->  | M28: =IF(RTD("gllinks.rtd",,"Mkt",$A28,M$1)="--","",RTD("gllinks.rtd",,"Mkt",$A28,M$1)) ->  | N28: =IF(RTD("gllinks.rtd",,"Mkt",$A28,N$1)="--","",RTD("gllinks.rtd",,"Mkt",$A28,N$1)) ->  | O28: =IFERROR((_xll.rtdValue("BID QTY",$A28,"EMD","MXN")*M28+_xll.rtdValue("ASK QTY",$A28,"EMD","MXN")*L28)/(_xll.rtdValue("BID QTY",$A28,"EMD","MXN")+_xll.rtdValue("ASK QTY",$A28,"EMD","MXN")),"") -> 
A32: =Información!E5&Información!$H$2 -> MY29MR22 | L32: =IF(RTD("gllinks.rtd",,"Mkt",$A32,L$1)="--","",RTD("gllinks.rtd",,"Mkt",$A32,L$1)) ->  | M32: =IF(RTD("gllinks.rtd",,"Mkt",$A32,M$1)="--","",RTD("gllinks.rtd",,"Mkt",$A32,M$1)) ->  | N32: =IF(RTD("gllinks.rtd",,"Mkt",$A32,N$1)="--","",RTD("gllinks.rtd",,"Mkt",$A32,N$1)) ->  | O32: =IFERROR((_xll.rtdValue("BID QTY",$A32,"EMD","MXN")*M32+_xll.rtdValue("ASK QTY",$A32,"EMD","MXN")*L32)/(_xll.rtdValue("BID QTY",$A32,"EMD","MXN")+_xll.rtdValue("ASK QTY",$A32,"EMD","MXN")),"") -> 
L33: =IF(RTD("gllinks.rtd",,"Mkt",$A33,L$1)="--","",RTD("gllinks.rtd",,"Mkt",$A33,L$1)) ->  | M33: =IF(RTD("gllinks.rtd",,"Mkt",$A33,M$1)="--","",RTD("gllinks.rtd",,"Mkt",$A33,M$1)) ->  | N33: =IF(RTD("gllinks.rtd",,"Mkt",$A33,N$1)="--","",RTD("gllinks.rtd",,"Mkt",$A33,N$1)) -> 
A34: =Información!E5&Información!$H$3 -> MY29JN22 | L34: =IF(RTD("gllinks.rtd",,"Mkt",$A34,L$1)="--","",RTD("gllinks.rtd",,"Mkt",$A34,L$1)) ->  | M34: =IF(RTD("gllinks.rtd",,"Mkt",$A34,M$1)="--","",RTD("gllinks.rtd",,"Mkt",$A34,M$1)) ->  | N34: =IF(RTD("gllinks.rtd",,"Mkt",$A34,N$1)="--","",RTD("gllinks.rtd",,"Mkt",$A34,N$1)) ->  | O34: =IFERROR((_xll.rtdValue("BID QTY",$A34,"EMD","MXN")*M34+_xll.rtdValue("ASK QTY",$A34,"EMD","MXN")*L34)/(_xll.rtdValue("BID QTY",$A34,"EMD","MXN")+_xll.rtdValue("ASK QTY",$A34,"EMD","MXN")),"") -> 
L35: =IF(RTD("gllinks.rtd",,"Mkt",$A35,L$1)="--","",RTD("gllinks.rtd",,"Mkt",$A35,L$1)) ->  | M35: =IF(RTD("gllinks.rtd",,"Mkt",$A35,M$1)="--","",RTD("gllinks.rtd",,"Mkt",$A35,M$1)) ->  | N35: =IF(RTD("gllinks.rtd",,"Mkt",$A35,N$1)="--","",RTD("gllinks.rtd",,"Mkt",$A35,N$1)) -> 
A36: =Información!E5&Información!$H$4 -> MY29SP22 | L36: =IF(RTD("gllinks.rtd",,"Mkt",$A36,L$1)="--","",RTD("gllinks.rtd",,"Mkt",$A36,L$1)) ->  | M36: =IF(RTD("gllinks.rtd",,"Mkt",$A36,M$1)="--","",RTD("gllinks.rtd",,"Mkt",$A36,M$1)) ->  | N36: =IF(RTD("gllinks.rtd",,"Mkt",$A36,N$1)="--","",RTD("gllinks.rtd",,"Mkt",$A36,N$1)) ->  | O36: =IFERROR((_xll.rtdValue("BID QTY",$A36,"EMD","MXN")*M36+_xll.rtdValue("ASK QTY",$A36,"EMD","MXN")*L36)/(_xll.rtdValue("BID QTY",$A36,"EMD","MXN")+_xll.rtdValue("ASK QTY",$A36,"EMD","MXN")),"") -> 
L37: =IF(RTD("gllinks.rtd",,"Mkt",$A37,L$1)="--","",RTD("gllinks.rtd",,"Mkt",$A37,L$1)) ->  | M37: =IF(RTD("gllinks.rtd",,"Mkt",$A37,M$1)="--","",RTD("gllinks.rtd",,"Mkt",$A37,M$1)) ->  | N37: =IF(RTD("gllinks.rtd",,"Mkt",$A37,N$1)="--","",RTD("gllinks.rtd",,"Mkt",$A37,N$1)) -> 
A38: =Información!E5&Información!$H$5 -> MY29DC22 | L38: =IF(RTD("gllinks.rtd",,"Mkt",$A38,L$1)="--","",RTD("gllinks.rtd",,"Mkt",$A38,L$1)) ->  | M38: =IF(RTD("gllinks.rtd",,"Mkt",$A38,M$1)="--","",RTD("gllinks.rtd",,"Mkt",$A38,M$1)) ->  | N38: =IF(RTD("gllinks.rtd",,"Mkt",$A38,N$1)="--","",RTD("gllinks.rtd",,"Mkt",$A38,N$1)) ->  | O38: =IFERROR((_xll.rtdValue("BID QTY",$A38,"EMD","MXN")*M38+_xll.rtdValue("ASK QTY",$A38,"EMD","MXN")*L38)/(_xll.rtdValue("BID QTY",$A38,"EMD","MXN")+_xll.rtdValue("ASK QTY",$A38,"EMD","MXN")),"") -> 
A42: =Información!E6&Información!$H$2 -> MY31MR22 | L42: =IF(RTD("gllinks.rtd",,"Mkt",$A42,L$1)="--","",RTD("gllinks.rtd",,"Mkt",$A42,L$1)) ->  | M42: =IF(RTD("gllinks.rtd",,"Mkt",$A42,M$1)="--","",RTD("gllinks.rtd",,"Mkt",$A42,M$1)) ->  | N42: =IF(RTD("gllinks.rtd",,"Mkt",$A42,N$1)="--","",RTD("gllinks.rtd",,"Mkt",$A42,N$1)) ->  | O42: =IFERROR((_xll.rtdValue("BID QTY",$A42,"EMD","MXN")*M42+_xll.rtdValue("ASK QTY",$A42,"EMD","MXN")*L42)/(_xll.rtdValue("BID QTY",$A42,"EMD","MXN")+_xll.rtdValue("ASK QTY",$A42,"EMD","MXN")),"") -> 
L43: =IF(RTD("gllinks.rtd",,"Mkt",$A43,L$1)="--","",RTD("gllinks.rtd",,"Mkt",$A43,L$1)) ->  | M43: =IF(RTD("gllinks.rtd",,"Mkt",$A43,M$1)="--","",RTD("gllinks.rtd",,"Mkt",$A43,M$1)) ->  | N43: =IF(RTD("gllinks.rtd",,"Mkt",$A43,N$1)="--","",RTD("gllinks.rtd",,"Mkt",$A43,N$1)) -> 
A44: =Información!E6&Información!$H$3 -> MY31JN22 | L44: =IF(RTD("gllinks.rtd",,"Mkt",$A44,L$1)="--","",RTD("gllinks.rtd",,"Mkt",$A44,L$1)) ->  | M44: =IF(RTD("gllinks.rtd",,"Mkt",$A44,M$1)="--","",RTD("gllinks.rtd",,"Mkt",$A44,M$1)) ->  | N44: =IF(RTD("gllinks.rtd",,"Mkt",$A44,N$1)="--","",RTD("gllinks.rtd",,"Mkt",$A44,N$1)) ->  | O44: =IFERROR((_xll.rtdValue("BID QTY",$A44,"EMD","MXN")*M44+_xll.rtdValue("ASK QTY",$A44,"EMD","MXN")*L44)/(_xll.rtdValue("BID QTY",$A44,"EMD","MXN")+_xll.rtdValue("ASK QTY",$A44,"EMD","MXN")),"") -> 
L45: =IF(RTD("gllinks.rtd",,"Mkt",$A45,L$1)="--","",RTD("gllinks.rtd",,"Mkt",$A45,L$1)) ->  | M45: =IF(RTD("gllinks.rtd",,"Mkt",$A45,M$1)="--","",RTD("gllinks.rtd",,"Mkt",$A45,M$1)) ->  | N45: =IF(RTD("gllinks.rtd",,"Mkt",$A45,N$1)="--","",RTD("gllinks.rtd",,"Mkt",$A45,N$1)) -> 
A46: =Información!E6&Información!$H$4 -> MY31SP22 | L46: =IF(RTD("gllinks.rtd",,"Mkt",$A46,L$1)="--","",RTD("gllinks.rtd",,"Mkt",$A46,L$1)) ->  | M46: =IF(RTD("gllinks.rtd",,"Mkt",$A46,M$1)="--","",RTD("gllinks.rtd",,"Mkt",$A46,M$1)) ->  | N46: =IF(RTD("gllinks.rtd",,"Mkt",$A46,N$1)="--","",RTD("gllinks.rtd",,"Mkt",$A46,N$1)) ->  | O46: =IFERROR((_xll.rtdValue("BID QTY",$A46,"EMD","MXN")*M46+_xll.rtdValue("ASK QTY",$A46,"EMD","MXN")*L46)/(_xll.rtdValue("BID QTY",$A46,"EMD","MXN")+_xll.rtdValue("ASK QTY",$A46,"EMD","MXN")),"") -> 
L47: =IF(RTD("gllinks.rtd",,"Mkt",$A47,L$1)="--","",RTD("gllinks.rtd",,"Mkt",$A47,L$1)) ->  | M47: =IF(RTD("gllinks.rtd",,"Mkt",$A47,M$1)="--","",RTD("gllinks.rtd",,"Mkt",$A47,M$1)) ->  | N47: =IF(RTD("gllinks.rtd",,"Mkt",$A47,N$1)="--","",RTD("gllinks.rtd",,"Mkt",$A47,N$1)) -> 
A48: =Información!E6&Información!$H$5 -> MY31DC22 | L48: =IF(RTD("gllinks.rtd",,"Mkt",$A48,L$1)="--","",RTD("gllinks.rtd",,"Mkt",$A48,L$1)) ->  | M48: =IF(RTD("gllinks.rtd",,"Mkt",$A48,M$1)="--","",RTD("gllinks.rtd",,"Mkt",$A48,M$1)) ->  | N48: =IF(RTD("gllinks.rtd",,"Mkt",$A48,N$1)="--","",RTD("gllinks.rtd",,"Mkt",$A48,N$1)) ->  | O48: =IFERROR((_xll.rtdValue("BID QTY",$A48,"EMD","MXN")*M48+_xll.rtdValue("ASK QTY",$A48,"EMD","MXN")*L48)/(_xll.rtdValue("BID QTY",$A48,"EMD","MXN")+_xll.rtdValue("ASK QTY",$A48,"EMD","MXN")),"") -> 
R50: 116.15
A52: =Información!E7&Información!$H$2 -> NV36MR22 | L52: =IF(RTD("gllinks.rtd",,"Mkt",$A52,L$1)="--","",RTD("gllinks.rtd",,"Mkt",$A52,L$1)) ->  | M52: =IF(RTD("gllinks.rtd",,"Mkt",$A52,M$1)="--","",RTD("gllinks.rtd",,"Mkt",$A52,M$1)) ->  | N52: =IF(RTD("gllinks.rtd",,"Mkt",$A52,N$1)="--","",RTD("gllinks.rtd",,"Mkt",$A52,N$1)) ->  | O52: =IFERROR((_xll.rtdValue("BID QTY",$A52,"EMD","MXN")*M52+_xll.rtdValue("ASK QTY",$A52,"EMD","MXN")*L52)/(_xll.rtdValue("BID QTY",$A52,"EMD","MXN")+_xll.rtdValue("ASK QTY",$A52,"EMD","MXN")),"") -> 
L53: =IF(RTD("gllinks.rtd",,"Mkt",$A53,L$1)="--","",RTD("gllinks.rtd",,"Mkt",$A53,L$1)) ->  | M53: =IF(RTD("gllinks.rtd",,"Mkt",$A53,M$1)="--","",RTD("gllinks.rtd",,"Mkt",$A53,M$1)) ->  | N53: =IF(RTD("gllinks.rtd",,"Mkt",$A53,N$1)="--","",RTD("gllinks.rtd",,"Mkt",$A53,N$1)) -> 
A54: =Información!E7&Información!$H$3 -> NV36JN22 | L54: =IF(RTD("gllinks.rtd",,"Mkt",$A54,L$1)="--","",RTD("gllinks.rtd",,"Mkt",$A54,L$1)) ->  | M54: =IF(RTD("gllinks.rtd",,"Mkt",$A54,M$1)="--","",RTD("gllinks.rtd",,"Mkt",$A54,M$1)) ->  | N54: =IF(RTD("gllinks.rtd",,"Mkt",$A54,N$1)="--","",RTD("gllinks.rtd",,"Mkt",$A54,N$1)) ->  | O54: =IFERROR((_xll.rtdValue("BID QTY",$A54,"EMD","MXN")*M54+_xll.rtdValue("ASK QTY",$A54,"EMD","MXN")*L54)/(_xll.rtdValue("BID QTY",$A54,"EMD","MXN")+_xll.rtdValue("ASK QTY",$A54,"EMD","MXN")),"") -> 
L55: =IF(RTD("gllinks.rtd",,"Mkt",$A55,L$1)="--","",RTD("gllinks.rtd",,"Mkt",$A55,L$1)) ->  | M55: =IF(RTD("gllinks.rtd",,"Mkt",$A55,M$1)="--","",RTD("gllinks.rtd",,"Mkt",$A55,M$1)) ->  | N55: =IF(RTD("gllinks.rtd",,"Mkt",$A55,N$1)="--","",RTD("gllinks.rtd",,"Mkt",$A55,N$1)) -> 
A56: =Información!E7&Información!$H$4 -> NV36SP22 | L56: =IF(RTD("gllinks.rtd",,"Mkt",$A56,L$1)="--","",RTD("gllinks.rtd",,"Mkt",$A56,L$1)) ->  | M56: =IF(RTD("gllinks.rtd",,"Mkt",$A56,M$1)="--","",RTD("gllinks.rtd",,"Mkt",$A56,M$1)) ->  | N56: =IF(RTD("gllinks.rtd",,"Mkt",$A56,N$1)="--","",RTD("gllinks.rtd",,"Mkt",$A56,N$1)) ->  | O56: =IFERROR((_xll.rtdValue("BID QTY",$A56,"EMD","MXN")*M56+_xll.rtdValue("ASK QTY",$A56,"EMD","MXN")*L56)/(_xll.rtdValue("BID QTY",$A56,"EMD","MXN")+_xll.rtdValue("ASK QTY",$A56,"EMD","MXN")),"") -> 
L57: =IF(RTD("gllinks.rtd",,"Mkt",$A57,L$1)="--","",RTD("gllinks.rtd",,"Mkt",$A57,L$1)) ->  | M57: =IF(RTD("gllinks.rtd",,"Mkt",$A57,M$1)="--","",RTD("gllinks.rtd",,"Mkt",$A57,M$1)) ->  | N57: =IF(RTD("gllinks.rtd",,"Mkt",$A57,N$1)="--","",RTD("gllinks.rtd",,"Mkt",$A57,N$1)) -> 
A58: =Información!E7&Información!$H$5 -> NV36DC22 | L58: =IF(RTD("gllinks.rtd",,"Mkt",$A58,L$1)="--","",RTD("gllinks.rtd",,"Mkt",$A58,L$1)) ->  | M58: =IF(RTD("gllinks.rtd",,"Mkt",$A58,M$1)="--","",RTD("gllinks.rtd",,"Mkt",$A58,M$1)) ->  | N58: =IF(RTD("gllinks.rtd",,"Mkt",$A58,N$1)="--","",RTD("gllinks.rtd",,"Mkt",$A58,N$1)) ->  | O58: =IFERROR((_xll.rtdValue("BID QTY",$A58,"EMD","MXN")*M58+_xll.rtdValue("ASK QTY",$A58,"EMD","MXN")*L58)/(_xll.rtdValue("BID QTY",$A58,"EMD","MXN")+_xll.rtdValue("ASK QTY",$A58,"EMD","MXN")),"") -> 
D60: 0 | E60: 0 | H60: 0
A62: =Información!E8&Información!$H$2 -> NV42MR22 | L62: =IF(RTD("gllinks.rtd",,"Mkt",$A62,L$1)="--","",RTD("gllinks.rtd",,"Mkt",$A62,L$1)) ->  | M62: =IF(RTD("gllinks.rtd",,"Mkt",$A62,M$1)="--","",RTD("gllinks.rtd",,"Mkt",$A62,M$1)) ->  | N62: =IF(RTD("gllinks.rtd",,"Mkt",$A62,N$1)="--","",RTD("gllinks.rtd",,"Mkt",$A62,N$1)) -> 
L63: =IF(RTD("gllinks.rtd",,"Mkt",$A63,L$1)="--","",RTD("gllinks.rtd",,"Mkt",$A63,L$1)) ->  | M63: =IF(RTD("gllinks.rtd",,"Mkt",$A63,M$1)="--","",RTD("gllinks.rtd",,"Mkt",$A63,M$1)) ->  | N63: =IF(RTD("gllinks.rtd",,"Mkt",$A63,N$1)="--","",RTD("gllinks.rtd",,"Mkt",$A63,N$1)) -> 
A64: =Información!E8&Información!$H$3 -> NV42JN22 | L64: =IF(RTD("gllinks.rtd",,"Mkt",$A64,L$1)="--","",RTD("gllinks.rtd",,"Mkt",$A64,L$1)) ->  | M64: =IF(RTD("gllinks.rtd",,"Mkt",$A64,M$1)="--","",RTD("gllinks.rtd",,"Mkt",$A64,M$1)) ->  | N64: =IF(RTD("gllinks.rtd",,"Mkt",$A64,N$1)="--","",RTD("gllinks.rtd",,"Mkt",$A64,N$1)) -> 
L65: =IF(RTD("gllinks.rtd",,"Mkt",$A65,L$1)="--","",RTD("gllinks.rtd",,"Mkt",$A65,L$1)) ->  | M65: =IF(RTD("gllinks.rtd",,"Mkt",$A65,M$1)="--","",RTD("gllinks.rtd",,"Mkt",$A65,M$1)) ->  | N65: =IF(RTD("gllinks.rtd",,"Mkt",$A65,N$1)="--","",RTD("gllinks.rtd",,"Mkt",$A65,N$1)) -> 
A66: =Información!E8&Información!$H$4 -> NV42SP22 | L66: =IF(RTD("gllinks.rtd",,"Mkt",$A66,L$1)="--","",RTD("gllinks.rtd",,"Mkt",$A66,L$1)) ->  | M66: =IF(RTD("gllinks.rtd",,"Mkt",$A66,M$1)="--","",RTD("gllinks.rtd",,"Mkt",$A66,M$1)) ->  | N66: =IF(RTD("gllinks.rtd",,"Mkt",$A66,N$1)="--","",RTD("gllinks.rtd",,"Mkt",$A66,N$1)) ->  | O66: =IFERROR((_xll.rtdValue("BID QTY",$A66,"EMD","MXN")*M66+_xll.rtdValue("ASK QTY",$A66,"EMD","MXN")*L66)/(_xll.rtdValue("BID QTY",$A66,"EMD","MXN")+_xll.rtdValue("ASK QTY",$A66,"EMD","MXN")),"") -> 
L67: =IF(RTD("gllinks.rtd",,"Mkt",$A67,L$1)="--","",RTD("gllinks.rtd",,"Mkt",$A67,L$1)) ->  | M67: =IF(RTD("gllinks.rtd",,"Mkt",$A67,M$1)="--","",RTD("gllinks.rtd",,"Mkt",$A67,M$1)) ->  | N67: =IF(RTD("gllinks.rtd",,"Mkt",$A67,N$1)="--","",RTD("gllinks.rtd",,"Mkt",$A67,N$1)) -> 
A68: =Información!E8&Información!$H$5 -> NV42DC22 | L68: =IF(RTD("gllinks.rtd",,"Mkt",$A68,L$1)="--","",RTD("gllinks.rtd",,"Mkt",$A68,L$1)) ->  | M68: =IF(RTD("gllinks.rtd",,"Mkt",$A68,M$1)="--","",RTD("gllinks.rtd",,"Mkt",$A68,M$1)) ->  | N68: =IF(RTD("gllinks.rtd",,"Mkt",$A68,N$1)="--","",RTD("gllinks.rtd",,"Mkt",$A68,N$1)) ->  | O68: =IFERROR((_xll.rtdValue("BID QTY",$A68,"EMD","MXN")*M68+_xll.rtdValue("ASK QTY",$A68,"EMD","MXN")*L68)/(_xll.rtdValue("BID QTY",$A68,"EMD","MXN")+_xll.rtdValue("ASK QTY",$A68,"EMD","MXN")),"") -> 
D70: 0 | E70: 0 | H70: 0
A72: =Información!E9&Información!$H$2 -> NV47MR22 | L72: =IF(RTD("gllinks.rtd",,"Mkt",$A72,L$1)="--","",RTD("gllinks.rtd",,"Mkt",$A72,L$1)) ->  | M72: =IF(RTD("gllinks.rtd",,"Mkt",$A72,M$1)="--","",RTD("gllinks.rtd",,"Mkt",$A72,M$1)) ->  | N72: =IF(RTD("gllinks.rtd",,"Mkt",$A72,N$1)="--","",RTD("gllinks.rtd",,"Mkt",$A72,N$1)) ->  | O72: =IFERROR((_xll.rtdValue("BID QTY",$A72,"EMD","MXN")*M72+_xll.rtdValue("ASK QTY",$A72,"EMD","MXN")*L72)/(_xll.rtdValue("BID QTY",$A72,"EMD","MXN")+_xll.rtdValue("ASK QTY",$A72,"EMD","MXN")),"") -> 
L73: =IF(RTD("gllinks.rtd",,"Mkt",$A73,L$1)="--","",RTD("gllinks.rtd",,"Mkt",$A73,L$1)) ->  | M73: =IF(RTD("gllinks.rtd",,"Mkt",$A73,M$1)="--","",RTD("gllinks.rtd",,"Mkt",$A73,M$1)) ->  | N73: =IF(RTD("gllinks.rtd",,"Mkt",$A73,N$1)="--","",RTD("gllinks.rtd",,"Mkt",$A73,N$1)) -> 
A74: =Información!E9&Información!$H$3 -> NV47JN22 | L74: =IF(RTD("gllinks.rtd",,"Mkt",$A74,L$1)="--","",RTD("gllinks.rtd",,"Mkt",$A74,L$1)) ->  | M74: =IF(RTD("gllinks.rtd",,"Mkt",$A74,M$1)="--","",RTD("gllinks.rtd",,"Mkt",$A74,M$1)) ->  | N74: =IF(RTD("gllinks.rtd",,"Mkt",$A74,N$1)="--","",RTD("gllinks.rtd",,"Mkt",$A74,N$1)) ->  | O74: =IFERROR((_xll.rtdValue("BID QTY",$A74,"EMD","MXN")*M74+_xll.rtdValue("ASK QTY",$A74,"EMD","MXN")*L74)/(_xll.rtdValue("BID QTY",$A74,"EMD","MXN")+_xll.rtdValue("ASK QTY",$A74,"EMD","MXN")),"") -> 
L75: =IF(RTD("gllinks.rtd",,"Mkt",$A75,L$1)="--","",RTD("gllinks.rtd",,"Mkt",$A75,L$1)) ->  | M75: =IF(RTD("gllinks.rtd",,"Mkt",$A75,M$1)="--","",RTD("gllinks.rtd",,"Mkt",$A75,M$1)) ->  | N75: =IF(RTD("gllinks.rtd",,"Mkt",$A75,N$1)="--","",RTD("gllinks.rtd",,"Mkt",$A75,N$1)) -> 
A76: =Información!E9&Información!$H$4 -> NV47SP22 | L76: =IF(RTD("gllinks.rtd",,"Mkt",$A76,L$1)="--","",RTD("gllinks.rtd",,"Mkt",$A76,L$1)) ->  | M76: =IF(RTD("gllinks.rtd",,"Mkt",$A76,M$1)="--","",RTD("gllinks.rtd",,"Mkt",$A76,M$1)) ->  | N76: =IF(RTD("gllinks.rtd",,"Mkt",$A76,N$1)="--","",RTD("gllinks.rtd",,"Mkt",$A76,N$1)) ->  | O76: =IFERROR((_xll.rtdValue("BID QTY",$A76,"EMD","MXN")*M76+_xll.rtdValue("ASK QTY",$A76,"EMD","MXN")*L76)/(_xll.rtdValue("BID QTY",$A76,"EMD","MXN")+_xll.rtdValue("ASK QTY",$A76,"EMD","MXN")),"") -> 
L77: =IF(RTD("gllinks.rtd",,"Mkt",$A77,L$1)="--","",RTD("gllinks.rtd",,"Mkt",$A77,L$1)) ->  | M77: =IF(RTD("gllinks.rtd",,"Mkt",$A77,M$1)="--","",RTD("gllinks.rtd",,"Mkt",$A77,M$1)) ->  | N77: =IF(RTD("gllinks.rtd",,"Mkt",$A77,N$1)="--","",RTD("gllinks.rtd",,"Mkt",$A77,N$1)) -> 
A78: =Información!E9&Información!$H$5 -> NV47DC22 | L78: =IF(RTD("gllinks.rtd",,"Mkt",$A78,L$1)="--","",RTD("gllinks.rtd",,"Mkt",$A78,L$1)) ->  | M78: =IF(RTD("gllinks.rtd",,"Mkt",$A78,M$1)="--","",RTD("gllinks.rtd",,"Mkt",$A78,M$1)) ->  | N78: =IF(RTD("gllinks.rtd",,"Mkt",$A78,N$1)="--","",RTD("gllinks.rtd",,"Mkt",$A78,N$1)) ->  | O78: =IFERROR((_xll.rtdValue("BID QTY",$A78,"EMD","MXN")*M78+_xll.rtdValue("ASK QTY",$A78,"EMD","MXN")*L78)/(_xll.rtdValue("BID QTY",$A78,"EMD","MXN")+_xll.rtdValue("ASK QTY",$A78,"EMD","MXN")),"") -> 
L79: =IF(RTD("gllinks.rtd",,"Mkt",$A79,L$1)="--","",RTD("gllinks.rtd",,"Mkt",$A79,L$1)) ->  | M79: =IF(RTD("gllinks.rtd",,"Mkt",$A79,M$1)="--","",RTD("gllinks.rtd",,"Mkt",$A79,M$1)) ->  | N79: =IF(RTD("gllinks.rtd",,"Mkt",$A79,N$1)="--","",RTD("gllinks.rtd",,"Mkt",$A79,N$1)) -> 
L80: =IF(RTD("gllinks.rtd",,"Mkt",$A80,L$1)="--","",RTD("gllinks.rtd",,"Mkt",$A80,L$1)) ->  | M80: =IF(RTD("gllinks.rtd",,"Mkt",$A80,M$1)="--","",RTD("gllinks.rtd",,"Mkt",$A80,M$1)) ->  | N80: =IF(RTD("gllinks.rtd",,"Mkt",$A80,N$1)="--","",RTD("gllinks.rtd",,"Mkt",$A80,N$1)) -> 
L82: =IF(RTD("gllinks.rtd",,"Mkt",$A82,L$1)="--","",RTD("gllinks.rtd",,"Mkt",$A82,L$1)) ->  | M82: =IF(RTD("gllinks.rtd",,"Mkt",$A82,M$1)="--","",RTD("gllinks.rtd",,"Mkt",$A82,M$1)) ->  | N82: =IF(RTD("gllinks.rtd",,"Mkt",$A82,N$1)="--","",RTD("gllinks.rtd",,"Mkt",$A82,N$1)) ->  | O82: =IFERROR((_xll.rtdValue("BID QTY",$A82,"EMD","MXN")*M82+_xll.rtdValue("ASK QTY",$A82,"EMD","MXN")*L82)/(_xll.rtdValue("BID QTY",$A82,"EMD","MXN")+_xll.rtdValue("ASK QTY",$A82,"EMD","MXN")),"") -> 
L83: =IF(RTD("gllinks.rtd",,"Mkt",$A83,L$1)="--","",RTD("gllinks.rtd",,"Mkt",$A83,L$1)) ->  | M83: =IF(RTD("gllinks.rtd",,"Mkt",$A83,M$1)="--","",RTD("gllinks.rtd",,"Mkt",$A83,M$1)) ->  | N83: =IF(RTD("gllinks.rtd",,"Mkt",$A83,N$1)="--","",RTD("gllinks.rtd",,"Mkt",$A83,N$1)) -> 
L84: =IF(RTD("gllinks.rtd",,"Mkt",$A84,L$1)="--","",RTD("gllinks.rtd",,"Mkt",$A84,L$1)) ->  | M84: =IF(RTD("gllinks.rtd",,"Mkt",$A84,M$1)="--","",RTD("gllinks.rtd",,"Mkt",$A84,M$1)) ->  | N84: =IF(RTD("gllinks.rtd",,"Mkt",$A84,N$1)="--","",RTD("gllinks.rtd",,"Mkt",$A84,N$1)) ->  | O84: =IFERROR((_xll.rtdValue("BID QTY",$A84,"EMD","MXN")*M84+_xll.rtdValue("ASK QTY",$A84,"EMD","MXN")*L84)/(_xll.rtdValue("BID QTY",$A84,"EMD","MXN")+_xll.rtdValue("ASK QTY",$A84,"EMD","MXN")),"") -> 
L85: =IF(RTD("gllinks.rtd",,"Mkt",$A85,L$1)="--","",RTD("gllinks.rtd",,"Mkt",$A85,L$1)) ->  | M85: =IF(RTD("gllinks.rtd",,"Mkt",$A85,M$1)="--","",RTD("gllinks.rtd",,"Mkt",$A85,M$1)) ->  | N85: =IF(RTD("gllinks.rtd",,"Mkt",$A85,N$1)="--","",RTD("gllinks.rtd",,"Mkt",$A85,N$1)) -> 
L86: =IF(RTD("gllinks.rtd",,"Mkt",$A86,L$1)="--","",RTD("gllinks.rtd",,"Mkt",$A86,L$1)) ->  | M86: =IF(RTD("gllinks.rtd",,"Mkt",$A86,M$1)="--","",RTD("gllinks.rtd",,"Mkt",$A86,M$1)) ->  | N86: =IF(RTD("gllinks.rtd",,"Mkt",$A86,N$1)="--","",RTD("gllinks.rtd",,"Mkt",$A86,N$1)) ->  | O86: =IFERROR((_xll.rtdValue("BID QTY",$A86,"EMD","MXN")*M86+_xll.rtdValue("ASK QTY",$A86,"EMD","MXN")*L86)/(_xll.rtdValue("BID QTY",$A86,"EMD","MXN")+_xll.rtdValue("ASK QTY",$A86,"EMD","MXN")),"") -> 
L87: =IF(RTD("gllinks.rtd",,"Mkt",$A87,L$1)="--","",RTD("gllinks.rtd",,"Mkt",$A87,L$1)) ->  | M87: =IF(RTD("gllinks.rtd",,"Mkt",$A87,M$1)="--","",RTD("gllinks.rtd",,"Mkt",$A87,M$1)) ->  | N87: =IF(RTD("gllinks.rtd",,"Mkt",$A87,N$1)="--","",RTD("gllinks.rtd",,"Mkt",$A87,N$1)) -> 
L88: =IF(RTD("gllinks.rtd",,"Mkt",$A88,L$1)="--","",RTD("gllinks.rtd",,"Mkt",$A88,L$1)) ->  | M88: =IF(RTD("gllinks.rtd",,"Mkt",$A88,M$1)="--","",RTD("gllinks.rtd",,"Mkt",$A88,M$1)) ->  | N88: =IF(RTD("gllinks.rtd",,"Mkt",$A88,N$1)="--","",RTD("gllinks.rtd",,"Mkt",$A88,N$1)) ->  | O88: =IFERROR((_xll.rtdValue("BID QTY",$A88,"EMD","MXN")*M88+_xll.rtdValue("ASK QTY",$A88,"EMD","MXN")*L88)/(_xll.rtdValue("BID QTY",$A88,"EMD","MXN")+_xll.rtdValue("ASK QTY",$A88,"EMD","MXN")),"") -> 
D90: 0 | E90: 0 | H90: 0
L92: =IF(RTD("gllinks.rtd",,"Mkt",$A92,L$1)="--","",RTD("gllinks.rtd",,"Mkt",$A92,L$1)) ->  | M92: =IF(RTD("gllinks.rtd",,"Mkt",$A92,M$1)="--","",RTD("gllinks.rtd",,"Mkt",$A92,M$1)) ->  | N92: =IF(RTD("gllinks.rtd",,"Mkt",$A92,N$1)="--","",RTD("gllinks.rtd",,"Mkt",$A92,N$1)) ->  | O92: =IFERROR((_xll.rtdValue("BID QTY",$A92,"EMD","MXN")*M92+_xll.rtdValue("ASK QTY",$A92,"EMD","MXN")*L92)/(_xll.rtdValue("BID QTY",$A92,"EMD","MXN")+_xll.rtdValue("ASK QTY",$A92,"EMD","MXN")),"") -> 
L93: =IF(RTD("gllinks.rtd",,"Mkt",$A93,L$1)="--","",RTD("gllinks.rtd",,"Mkt",$A93,L$1)) ->  | M93: =IF(RTD("gllinks.rtd",,"Mkt",$A93,M$1)="--","",RTD("gllinks.rtd",,"Mkt",$A93,M$1)) ->  | N93: =IF(RTD("gllinks.rtd",,"Mkt",$A93,N$1)="--","",RTD("gllinks.rtd",,"Mkt",$A93,N$1)) -> 
L94: =IF(RTD("gllinks.rtd",,"Mkt",$A94,L$1)="--","",RTD("gllinks.rtd",,"Mkt",$A94,L$1)) ->  | M94: =IF(RTD("gllinks.rtd",,"Mkt",$A94,M$1)="--","",RTD("gllinks.rtd",,"Mkt",$A94,M$1)) ->  | N94: =IF(RTD("gllinks.rtd",,"Mkt",$A94,N$1)="--","",RTD("gllinks.rtd",,"Mkt",$A94,N$1)) ->  | O94: =IFERROR((_xll.rtdValue("BID QTY",$A94,"EMD","MXN")*M94+_xll.rtdValue("ASK QTY",$A94,"EMD","MXN")*L94)/(_xll.rtdValue("BID QTY",$A94,"EMD","MXN")+_xll.rtdValue("ASK QTY",$A94,"EMD","MXN")),"") -> 
L95: =IF(RTD("gllinks.rtd",,"Mkt",$A95,L$1)="--","",RTD("gllinks.rtd",,"Mkt",$A95,L$1)) ->  | M95: =IF(RTD("gllinks.rtd",,"Mkt",$A95,M$1)="--","",RTD("gllinks.rtd",,"Mkt",$A95,M$1)) ->  | N95: =IF(RTD("gllinks.rtd",,"Mkt",$A95,N$1)="--","",RTD("gllinks.rtd",,"Mkt",$A95,N$1)) -> 
L96: =IF(RTD("gllinks.rtd",,"Mkt",$A96,L$1)="--","",RTD("gllinks.rtd",,"Mkt",$A96,L$1)) ->  | M96: =IF(RTD("gllinks.rtd",,"Mkt",$A96,M$1)="--","",RTD("gllinks.rtd",,"Mkt",$A96,M$1)) ->  | N96: =IF(RTD("gllinks.rtd",,"Mkt",$A96,N$1)="--","",RTD("gllinks.rtd",,"Mkt",$A96,N$1)) ->  | O96: =IFERROR((_xll.rtdValue("BID QTY",$A96,"EMD","MXN")*M96+_xll.rtdValue("ASK QTY",$A96,"EMD","MXN")*L96)/(_xll.rtdValue("BID QTY",$A96,"EMD","MXN")+_xll.rtdValue("ASK QTY",$A96,"EMD","MXN")),"") -> 
L97: =IF(RTD("gllinks.rtd",,"Mkt",$A97,L$1)="--","",RTD("gllinks.rtd",,"Mkt",$A97,L$1)) ->  | M97: =IF(RTD("gllinks.rtd",,"Mkt",$A97,M$1)="--","",RTD("gllinks.rtd",,"Mkt",$A97,M$1)) ->  | N97: =IF(RTD("gllinks.rtd",,"Mkt",$A97,N$1)="--","",RTD("gllinks.rtd",,"Mkt",$A97,N$1)) -> 
L98: =IF(RTD("gllinks.rtd",,"Mkt",$A98,L$1)="--","",RTD("gllinks.rtd",,"Mkt",$A98,L$1)) ->  | M98: =IF(RTD("gllinks.rtd",,"Mkt",$A98,M$1)="--","",RTD("gllinks.rtd",,"Mkt",$A98,M$1)) ->  | N98: =IF(RTD("gllinks.rtd",,"Mkt",$A98,N$1)="--","",RTD("gllinks.rtd",,"Mkt",$A98,N$1)) ->  | O98: =IFERROR((_xll.rtdValue("BID QTY",$A98,"EMD","MXN")*M98+_xll.rtdValue("ASK QTY",$A98,"EMD","MXN")*L98)/(_xll.rtdValue("BID QTY",$A98,"EMD","MXN")+_xll.rtdValue("ASK QTY",$A98,"EMD","MXN")),"") -> 
D100: 0 | E100: 0 | H100: 0
L102: =IF(RTD("gllinks.rtd",,"Mkt",$A102,L$1)="--","",RTD("gllinks.rtd",,"Mkt",$A102,L$1)) ->  | M102: =IF(RTD("gllinks.rtd",,"Mkt",$A102,M$1)="--","",RTD("gllinks.rtd",,"Mkt",$A102,M$1)) ->  | N102: =IF(RTD("gllinks.rtd",,"Mkt",$A102,N$1)="--","",RTD("gllinks.rtd",,"Mkt",$A102,N$1)) ->  | O102: =IFERROR((_xll.rtdValue("BID QTY",$A102,"EMD","MXN")*M102+_xll.rtdValue("ASK QTY",$A102,"EMD","MXN")*L102)/(_xll.rtdValue("BID QTY",$A102,"EMD","MXN")+_xll.rtdValue("ASK QTY",$A102,"EMD","MXN")),"") -> 
L103: =IF(RTD("gllinks.rtd",,"Mkt",$A103,L$1)="--","",RTD("gllinks.rtd",,"Mkt",$A103,L$1)) ->  | M103: =IF(RTD("gllinks.rtd",,"Mkt",$A103,M$1)="--","",RTD("gllinks.rtd",,"Mkt",$A103,M$1)) ->  | N103: =IF(RTD("gllinks.rtd",,"Mkt",$A103,N$1)="--","",RTD("gllinks.rtd",,"Mkt",$A103,N$1)) -> 
L104: =IF(RTD("gllinks.rtd",,"Mkt",$A104,L$1)="--","",RTD("gllinks.rtd",,"Mkt",$A104,L$1)) ->  | M104: =IF(RTD("gllinks.rtd",,"Mkt",$A104,M$1)="--","",RTD("gllinks.rtd",,"Mkt",$A104,M$1)) ->  | N104: =IF(RTD("gllinks.rtd",,"Mkt",$A104,N$1)="--","",RTD("gllinks.rtd",,"Mkt",$A104,N$1)) ->  | O104: =IFERROR((_xll.rtdValue("BID QTY",$A104,"EMD","MXN")*M104+_xll.rtdValue("ASK QTY",$A104,"EMD","MXN")*L104)/(_xll.rtdValue("BID QTY",$A104,"EMD","MXN")+_xll.rtdValue("ASK QTY",$A104,"EMD","MXN")),"") -> 
L105: =IF(RTD("gllinks.rtd",,"Mkt",$A105,L$1)="--","",RTD("gllinks.rtd",,"Mkt",$A105,L$1)) ->  | M105: =IF(RTD("gllinks.rtd",,"Mkt",$A105,M$1)="--","",RTD("gllinks.rtd",,"Mkt",$A105,M$1)) ->  | N105: =IF(RTD("gllinks.rtd",,"Mkt",$A105,N$1)="--","",RTD("gllinks.rtd",,"Mkt",$A105,N$1)) -> 
L106: =IF(RTD("gllinks.rtd",,"Mkt",$A106,L$1)="--","",RTD("gllinks.rtd",,"Mkt",$A106,L$1)) ->  | M106: =IF(RTD("gllinks.rtd",,"Mkt",$A106,M$1)="--","",RTD("gllinks.rtd",,"Mkt",$A106,M$1)) ->  | N106: =IF(RTD("gllinks.rtd",,"Mkt",$A106,N$1)="--","",RTD("gllinks.rtd",,"Mkt",$A106,N$1)) ->  | O106: =IFERROR((_xll.rtdValue("BID QTY",$A106,"EMD","MXN")*M106+_xll.rtdValue("ASK QTY",$A106,"EMD","MXN")*L106)/(_xll.rtdValue("BID QTY",$A106,"EMD","MXN")+_xll.rtdValue("ASK QTY",$A106,"EMD","MXN")),"") -> 
L107: =IF(RTD("gllinks.rtd",,"Mkt",$A107,L$1)="--","",RTD("gllinks.rtd",,"Mkt",$A107,L$1)) ->  | M107: =IF(RTD("gllinks.rtd",,"Mkt",$A107,M$1)="--","",RTD("gllinks.rtd",,"Mkt",$A107,M$1)) ->  | N107: =IF(RTD("gllinks.rtd",,"Mkt",$A107,N$1)="--","",RTD("gllinks.rtd",,"Mkt",$A107,N$1)) -> 
L108: =IF(RTD("gllinks.rtd",,"Mkt",$A108,L$1)="--","",RTD("gllinks.rtd",,"Mkt",$A108,L$1)) ->  | M108: =IF(RTD("gllinks.rtd",,"Mkt",$A108,M$1)="--","",RTD("gllinks.rtd",,"Mkt",$A108,M$1)) ->  | N108: =IF(RTD("gllinks.rtd",,"Mkt",$A108,N$1)="--","",RTD("gllinks.rtd",,"Mkt",$A108,N$1)) ->  | O108: =IFERROR((_xll.rtdValue("BID QTY",$A108,"EMD","MXN")*M108+_xll.rtdValue("ASK QTY",$A108,"EMD","MXN")*L108)/(_xll.rtdValue("BID QTY",$A108,"EMD","MXN")+_xll.rtdValue("ASK QTY",$A108,"EMD","MXN")),"") -> 
D110: 0 | E110: 0 | H110: 0
L112: =IF(RTD("gllinks.rtd",,"Mkt",$A112,L$1)="--","",RTD("gllinks.rtd",,"Mkt",$A112,L$1)) ->  | M112: =IF(RTD("gllinks.rtd",,"Mkt",$A112,M$1)="--","",RTD("gllinks.rtd",,"Mkt",$A112,M$1)) ->  | N112: =IF(RTD("gllinks.rtd",,"Mkt",$A112,N$1)="--","",RTD("gllinks.rtd",,"Mkt",$A112,N$1)) -> 
L113: =IF(RTD("gllinks.rtd",,"Mkt",$A113,L$1)="--","",RTD("gllinks.rtd",,"Mkt",$A113,L$1)) ->  | M113: =IF(RTD("gllinks.rtd",,"Mkt",$A113,M$1)="--","",RTD("gllinks.rtd",,"Mkt",$A113,M$1)) ->  | N113: =IF(RTD("gllinks.rtd",,"Mkt",$A113,N$1)="--","",RTD("gllinks.rtd",,"Mkt",$A113,N$1)) -> 
L114: =IF(RTD("gllinks.rtd",,"Mkt",$A114,L$1)="--","",RTD("gllinks.rtd",,"Mkt",$A114,L$1)) ->  | M114: =IF(RTD("gllinks.rtd",,"Mkt",$A114,M$1)="--","",RTD("gllinks.rtd",,"Mkt",$A114,M$1)) ->  | N114: =IF(RTD("gllinks.rtd",,"Mkt",$A114,N$1)="--","",RTD("gllinks.rtd",,"Mkt",$A114,N$1)) -> 
L115: =IF(RTD("gllinks.rtd",,"Mkt",$A115,L$1)="--","",RTD("gllinks.rtd",,"Mkt",$A115,L$1)) ->  | M115: =IF(RTD("gllinks.rtd",,"Mkt",$A115,M$1)="--","",RTD("gllinks.rtd",,"Mkt",$A115,M$1)) ->  | N115: =IF(RTD("gllinks.rtd",,"Mkt",$A115,N$1)="--","",RTD("gllinks.rtd",,"Mkt",$A115,N$1)) -> 
L116: =IF(RTD("gllinks.rtd",,"Mkt",$A116,L$1)="--","",RTD("gllinks.rtd",,"Mkt",$A116,L$1)) ->  | M116: =IF(RTD("gllinks.rtd",,"Mkt",$A116,M$1)="--","",RTD("gllinks.rtd",,"Mkt",$A116,M$1)) ->  | N116: =IF(RTD("gllinks.rtd",,"Mkt",$A116,N$1)="--","",RTD("gllinks.rtd",,"Mkt",$A116,N$1)) ->  | O116: =IFERROR((_xll.rtdValue("BID QTY",$A116,"EMD","MXN")*M116+_xll.rtdValue("ASK QTY",$A116,"EMD","MXN")*L116)/(_xll.rtdValue("BID QTY",$A116,"EMD","MXN")+_xll.rtdValue("ASK QTY",$A116,"EMD","MXN")),"") -> 
L117: =IF(RTD("gllinks.rtd",,"Mkt",$A117,L$1)="--","",RTD("gllinks.rtd",,"Mkt",$A117,L$1)) ->  | M117: =IF(RTD("gllinks.rtd",,"Mkt",$A117,M$1)="--","",RTD("gllinks.rtd",,"Mkt",$A117,M$1)) ->  | N117: =IF(RTD("gllinks.rtd",,"Mkt",$A117,N$1)="--","",RTD("gllinks.rtd",,"Mkt",$A117,N$1)) -> 
L118: =IF(RTD("gllinks.rtd",,"Mkt",$A118,L$1)="--","",RTD("gllinks.rtd",,"Mkt",$A118,L$1)) ->  | M118: =IF(RTD("gllinks.rtd",,"Mkt",$A118,M$1)="--","",RTD("gllinks.rtd",,"Mkt",$A118,M$1)) ->  | N118: =IF(RTD("gllinks.rtd",,"Mkt",$A118,N$1)="--","",RTD("gllinks.rtd",,"Mkt",$A118,N$1)) ->  | O118: =IFERROR((_xll.rtdValue("BID QTY",$A118,"EMD","MXN")*M118+_xll.rtdValue("ASK QTY",$A118,"EMD","MXN")*L118)/(_xll.rtdValue("BID QTY",$A118,"EMD","MXN")+_xll.rtdValue("ASK QTY",$A118,"EMD","MXN")),"") -> 
D120: 0 | E120: 0 | H120: 0
L122: =IF(RTD("gllinks.rtd",,"Mkt",$A122,L$1)="--","",RTD("gllinks.rtd",,"Mkt",$A122,L$1)) ->  | M122: =IF(RTD("gllinks.rtd",,"Mkt",$A122,M$1)="--","",RTD("gllinks.rtd",,"Mkt",$A122,M$1)) ->  | N122: =IF(RTD("gllinks.rtd",,"Mkt",$A122,N$1)="--","",RTD("gllinks.rtd",,"Mkt",$A122,N$1)) ->  | O122: =IFERROR((_xll.rtdValue("BID QTY",$A122,"EMD","MXN")*M122+_xll.rtdValue("ASK QTY",$A122,"EMD","MXN")*L122)/(_xll.rtdValue("BID QTY",$A122,"EMD","MXN")+_xll.rtdValue("ASK QTY",$A122,"EMD","MXN")),"") -> 
L123: =IF(RTD("gllinks.rtd",,"Mkt",$A123,L$1)="--","",RTD("gllinks.rtd",,"Mkt",$A123,L$1)) ->  | M123: =IF(RTD("gllinks.rtd",,"Mkt",$A123,M$1)="--","",RTD("gllinks.rtd",,"Mkt",$A123,M$1)) ->  | N123: =IF(RTD("gllinks.rtd",,"Mkt",$A123,N$1)="--","",RTD("gllinks.rtd",,"Mkt",$A123,N$1)) -> 
L124: =IF(RTD("gllinks.rtd",,"Mkt",$A124,L$1)="--","",RTD("gllinks.rtd",,"Mkt",$A124,L$1)) ->  | M124: =IF(RTD("gllinks.rtd",,"Mkt",$A124,M$1)="--","",RTD("gllinks.rtd",,"Mkt",$A124,M$1)) ->  | N124: =IF(RTD("gllinks.rtd",,"Mkt",$A124,N$1)="--","",RTD("gllinks.rtd",,"Mkt",$A124,N$1)) ->  | O124: =IFERROR((_xll.rtdValue("BID QTY",$A124,"EMD","MXN")*M124+_xll.rtdValue("ASK QTY",$A124,"EMD","MXN")*L124)/(_xll.rtdValue("BID QTY",$A124,"EMD","MXN")+_xll.rtdValue("ASK QTY",$A124,"EMD","MXN")),"") -> 
L125: =IF(RTD("gllinks.rtd",,"Mkt",$A125,L$1)="--","",RTD("gllinks.rtd",,"Mkt",$A125,L$1)) ->  | M125: =IF(RTD("gllinks.rtd",,"Mkt",$A125,M$1)="--","",RTD("gllinks.rtd",,"Mkt",$A125,M$1)) ->  | N125: =IF(RTD("gllinks.rtd",,"Mkt",$A125,N$1)="--","",RTD("gllinks.rtd",,"Mkt",$A125,N$1)) -> 
L126: =IF(RTD("gllinks.rtd",,"Mkt",$A126,L$1)="--","",RTD("gllinks.rtd",,"Mkt",$A126,L$1)) ->  | M126: =IF(RTD("gllinks.rtd",,"Mkt",$A126,M$1)="--","",RTD("gllinks.rtd",,"Mkt",$A126,M$1)) ->  | N126: =IF(RTD("gllinks.rtd",,"Mkt",$A126,N$1)="--","",RTD("gllinks.rtd",,"Mkt",$A126,N$1)) ->  | O126: =IFERROR((_xll.rtdValue("BID QTY",$A126,"EMD","MXN")*M126+_xll.rtdValue("ASK QTY",$A126,"EMD","MXN")*L126)/(_xll.rtdValue("BID QTY",$A126,"EMD","MXN")+_xll.rtdValue("ASK QTY",$A126,"EMD","MXN")),"") -> 
L127: =IF(RTD("gllinks.rtd",,"Mkt",$A127,L$1)="--","",RTD("gllinks.rtd",,"Mkt",$A127,L$1)) ->  | M127: =IF(RTD("gllinks.rtd",,"Mkt",$A127,M$1)="--","",RTD("gllinks.rtd",,"Mkt",$A127,M$1)) ->  | N127: =IF(RTD("gllinks.rtd",,"Mkt",$A127,N$1)="--","",RTD("gllinks.rtd",,"Mkt",$A127,N$1)) -> 
L128: =IF(RTD("gllinks.rtd",,"Mkt",$A128,L$1)="--","",RTD("gllinks.rtd",,"Mkt",$A128,L$1)) ->  | M128: =IF(RTD("gllinks.rtd",,"Mkt",$A128,M$1)="--","",RTD("gllinks.rtd",,"Mkt",$A128,M$1)) ->  | N128: =IF(RTD("gllinks.rtd",,"Mkt",$A128,N$1)="--","",RTD("gllinks.rtd",,"Mkt",$A128,N$1)) ->  | O128: =IFERROR((_xll.rtdValue("BID QTY",$A128,"EMD","MXN")*M128+_xll.rtdValue("ASK QTY",$A128,"EMD","MXN")*L128)/(_xll.rtdValue("BID QTY",$A128,"EMD","MXN")+_xll.rtdValue("ASK QTY",$A128,"EMD","MXN")),"") -> 
L129: =IF(RTD("gllinks.rtd",,"Mkt",$A129,L$1)="--","",RTD("gllinks.rtd",,"Mkt",$A129,L$1)) ->  | M129: =IF(RTD("gllinks.rtd",,"Mkt",$A129,M$1)="--","",RTD("gllinks.rtd",,"Mkt",$A129,M$1)) ->  | N129: =IF(RTD("gllinks.rtd",,"Mkt",$A129,N$1)="--","",RTD("gllinks.rtd",,"Mkt",$A129,N$1)) -> 
L130: =IF(RTD("gllinks.rtd",,"Mkt",$A130,L$1)="--","",RTD("gllinks.rtd",,"Mkt",$A130,L$1)) ->  | M130: =IF(RTD("gllinks.rtd",,"Mkt",$A130,M$1)="--","",RTD("gllinks.rtd",,"Mkt",$A130,M$1)) ->  | N130: =IF(RTD("gllinks.rtd",,"Mkt",$A130,N$1)="--","",RTD("gllinks.rtd",,"Mkt",$A130,N$1)) -> 
L132: =IF(RTD("gllinks.rtd",,"Mkt",$A132,L$1)="--","",RTD("gllinks.rtd",,"Mkt",$A132,L$1)) ->  | M132: =IF(RTD("gllinks.rtd",,"Mkt",$A132,M$1)="--","",RTD("gllinks.rtd",,"Mkt",$A132,M$1)) ->  | N132: =IF(RTD("gllinks.rtd",,"Mkt",$A132,N$1)="--","",RTD("gllinks.rtd",,"Mkt",$A132,N$1)) ->  | O132: =IFERROR((_xll.rtdValue("BID QTY",$A132,"EMD","MXN")*M132+_xll.rtdValue("ASK QTY",$A132,"EMD","MXN")*L132)/(_xll.rtdValue("BID QTY",$A132,"EMD","MXN")+_xll.rtdValue("ASK QTY",$A132,"EMD","MXN")),"") -> 
L133: =IF(RTD("gllinks.rtd",,"Mkt",$A133,L$1)="--","",RTD("gllinks.rtd",,"Mkt",$A133,L$1)) ->  | M133: =IF(RTD("gllinks.rtd",,"Mkt",$A133,M$1)="--","",RTD("gllinks.rtd",,"Mkt",$A133,M$1)) ->  | N133: =IF(RTD("gllinks.rtd",,"Mkt",$A133,N$1)="--","",RTD("gllinks.rtd",,"Mkt",$A133,N$1)) -> 
L134: =IF(RTD("gllinks.rtd",,"Mkt",$A134,L$1)="--","",RTD("gllinks.rtd",,"Mkt",$A134,L$1)) ->  | M134: =IF(RTD("gllinks.rtd",,"Mkt",$A134,M$1)="--","",RTD("gllinks.rtd",,"Mkt",$A134,M$1)) ->  | N134: =IF(RTD("gllinks.rtd",,"Mkt",$A134,N$1)="--","",RTD("gllinks.rtd",,"Mkt",$A134,N$1)) ->  | O134: =IFERROR((_xll.rtdValue("BID QTY",$A134,"EMD","MXN")*M134+_xll.rtdValue("ASK QTY",$A134,"EMD","MXN")*L134)/(_xll.rtdValue("BID QTY",$A134,"EMD","MXN")+_xll.rtdValue("ASK QTY",$A134,"EMD","MXN")),"") -> 
L135: =IF(RTD("gllinks.rtd",,"Mkt",$A135,L$1)="--","",RTD("gllinks.rtd",,"Mkt",$A135,L$1)) ->  | M135: =IF(RTD("gllinks.rtd",,"Mkt",$A135,M$1)="--","",RTD("gllinks.rtd",,"Mkt",$A135,M$1)) ->  | N135: =IF(RTD("gllinks.rtd",,"Mkt",$A135,N$1)="--","",RTD("gllinks.rtd",,"Mkt",$A135,N$1)) -> 
L136: =IF(RTD("gllinks.rtd",,"Mkt",$A136,L$1)="--","",RTD("gllinks.rtd",,"Mkt",$A136,L$1)) ->  | M136: =IF(RTD("gllinks.rtd",,"Mkt",$A136,M$1)="--","",RTD("gllinks.rtd",,"Mkt",$A136,M$1)) ->  | N136: =IF(RTD("gllinks.rtd",,"Mkt",$A136,N$1)="--","",RTD("gllinks.rtd",,"Mkt",$A136,N$1)) ->  | O136: =IFERROR((_xll.rtdValue("BID QTY",$A136,"EMD","MXN")*M136+_xll.rtdValue("ASK QTY",$A136,"EMD","MXN")*L136)/(_xll.rtdValue("BID QTY",$A136,"EMD","MXN")+_xll.rtdValue("ASK QTY",$A136,"EMD","MXN")),"") -> 
L137: =IF(RTD("gllinks.rtd",,"Mkt",$A137,L$1)="--","",RTD("gllinks.rtd",,"Mkt",$A137,L$1)) ->  | M137: =IF(RTD("gllinks.rtd",,"Mkt",$A137,M$1)="--","",RTD("gllinks.rtd",,"Mkt",$A137,M$1)) ->  | N137: =IF(RTD("gllinks.rtd",,"Mkt",$A137,N$1)="--","",RTD("gllinks.rtd",,"Mkt",$A137,N$1)) -> 
L138: =IF(RTD("gllinks.rtd",,"Mkt",$A138,L$1)="--","",RTD("gllinks.rtd",,"Mkt",$A138,L$1)) ->  | M138: =IF(RTD("gllinks.rtd",,"Mkt",$A138,M$1)="--","",RTD("gllinks.rtd",,"Mkt",$A138,M$1)) ->  | N138: =IF(RTD("gllinks.rtd",,"Mkt",$A138,N$1)="--","",RTD("gllinks.rtd",,"Mkt",$A138,N$1)) ->  | O138: =IFERROR((_xll.rtdValue("BID QTY",$A138,"EMD","MXN")*M138+_xll.rtdValue("ASK QTY",$A138,"EMD","MXN")*L138)/(_xll.rtdValue("BID QTY",$A138,"EMD","MXN")+_xll.rtdValue("ASK QTY",$A138,"EMD","MXN")),"") -> 
D140: 0 | E140: 0 | H140: 0

Sheet calendario (hidden)
A1: 2015-01-01
A2: 2015-02-02
A3: 2015-03-16
A4: 2015-04-02
A5: 2015-04-03
A6: 2015-05-01
A7: 2015-09-16
A8: 2015-11-02
A9: 2015-11-16
A10: 2015-12-25
A11: 2016-01-01
A12: 2016-02-01
A13: 2016-03-21
A14: 2016-03-24
A15: 2016-03-25
A16: 2016-09-16
A17: 2016-11-02
A18: 2016-11-21
A19: 2016-12-12
A20: 2017-02-06
A21: 2017-03-20
A22: 2017-04-13
A23: 2017-04-14
A24: 2017-05-01
A25: 2017-11-02
A26: 2017-11-20
A27: 2017-12-12
A28: 2017-12-25
A29: 2018-01-01
A30: 2018-02-05
A31: 2018-03-19
A32: 2018-03-29
A33: 2018-03-30
A34: 2018-05-01
A35: 2018-11-02
A36: 2018-11-19
A37: 2018-12-12
A38: 2018-12-25
A39: 2019-01-01
A40: 2019-02-04
A41: 2019-03-18
A42: 2019-04-18
A43: 2019-04-19
A44: 2019-05-01
A45: 2019-09-16
A46: 2019-11-18
A47: 2019-12-12
A48: 2019-12-25
A49: 2020-01-01
A50: 2020-02-03
A51: 2020-03-16
A52: 2020-04-09
A53: 2020-04-10
A54: 2020-05-01
A55: 2020-09-16
A56: 2020-11-02
A57: 2020-11-16
A58: 2020-12-25
A59: 2021-01-01
A60: 2021-02-01
A61: 2021-03-15
A62: 2021-04-01
A63: 2021-04-02
A64: 2021-09-16
A65: 2021-11-02
A66: 2021-11-15
A67: 2022-02-07
A68: 2022-03-21
A69: 2022-04-14
A70: 2022-04-15
A71: 2022-09-16
A72: 2022-11-02
A73: 2022-11-21
A74: 2022-12-12
A75: 2023-02-06
A76: 2023-03-20
A77: 2023-04-06
A78: 2023-04-07
A79: 2023-05-01
A80: 2023-11-02
A81: 2023-11-20
A82: 2023-12-12
A83: 2023-12-25
A84: 2024-01-01
A85: 2024-02-05
A86: 2024-03-18
A87: 2024-03-28
A88: 2024-03-29
A89: 2024-05-01
A90: 2024-09-16
A91: 2024-11-18
A92: 2024-12-12
A93: 2024-12-25
A94: 2025-01-01
A95: 2025-02-03
A96: 2025-03-17
A97: 2025-04-17
A98: 2025-04-18
A99: 2025-05-01
A100: 2025-09-16
A101: 2025-11-17
A102: 2025-12-12
A103: 2025-12-25
A104: 2026-01-01
A105: 2026-02-02
A106: 2026-03-16
A107: 2026-04-02
A108: 2026-04-03
A109: 2026-05-01
A110: 2026-09-16
A111: 2026-11-02
A112: 2026-11-16
A113: 2026-12-25
A114: 2027-01-01
A115: 2027-02-01
A116: 2027-03-15
A117: 2027-03-25
A118: 2027-03-26
A119: 2027-09-16
A120: 2027-11-02
A121: 2027-11-15
A122: 2028-02-07
A123: 2028-03-20
A124: 2028-04-13
A125: 2028-04-14
A126: 2028-05-01
A127: 2028-11-02
A128: 2028-11-20
A129: 2028-12-12
A130: 2028-12-25
A131: 2029-01-01
A132: 2029-02-05
A133: 2029-03-19
A134: 2029-03-29
A135: 2029-03-30
A136: 2029-05-01
A137: 2029-11-02
A138: 2029-11-19
A139: 2029-12-12
A140: 2029-12-25
A141: 2030-01-01
A142: 2030-02-04
A143: 2030-03-18
A144: 2030-04-18
A145: 2030-04-19
A146: 2030-05-01
A147: 2030-09-16
A148: 2030-11-18
A149: 2030-12-12
A150: 2030-12-25
A151: 2031-01-01
A152: 2031-02-03
A153: 2031-03-17
A154: 2031-04-10
A155: 2031-04-11
A156: 2031-05-01
A157: 2031-09-16
A158: 2031-11-17
A159: 2031-12-12
A160: 2031-12-25
A161: 2032-01-01
A162: 2032-02-02
A163: 2032-03-15
A164: 2032-03-25
A165: 2032-03-26
A166: 2032-09-16
A167: 2032-11-02
A168: 2032-11-15
A169: 2033-02-07
A170: 2033-03-21
A171: 2033-04-14
A172: 2033-04-15
A173: 2033-09-16
A174: 2033-11-02
A175: 2033-11-21
A176: 2033-12-12
A177: 2034-02-06
A178: 2034-03-20
A179: 2034-04-06
A180: 2034-04-07
A181: 2034-05-01
A182: 2034-11-02
A183: 2034-11-20
A184: 2034-12-12
A185: 2034-12-25
A186: 2035-01-01
A187: 2035-02-05
A188: 2035-03-19
A189: 2035-03-22
A190: 2035-03-23
A191: 2035-05-01
A192: 2035-11-02
A193: 2035-11-19
A194: 2035-12-12
A195: 2035-12-25
A196: 2036-01-01
A197: 2036-02-04
A198: 2036-03-17
A199: 2036-04-10
A200: 2036-04-11
... 139 more rows

Sheet Entrega Anticipada (hidden)
B5: Fecha entrega | C5: =CALC!B3 -> 2022-01-04
B6: Precio Liquidación | C6: 116.2
B7: Dias x vencer | C7: 1
B8: VP Cupón vig | C8: =CALC!B13 -> 0
B9: Tasa Fondeo | C9: =CALC!B11 -> 5.803942
B11: Si se entrega el bono antes de que corte cupón
B13: Precio Entrega | C13: =C6/(1+C9*C7/36000)+C8 -> 116.1812692
B15: Si se entrega el bono en el corte de cupón o despué
B17: Precio Entrega | C17: =C6/(1+C9*C7/36000) -> 116.1812692
